Cogmind - Beta 11 --- EXPLORER MODE // 2022.04.10 @ 16:38:35 // Winter2019/RPGLIKE Player: Kiks Result: Heading to fleet! Performance ------------- Evolutions (9) 4500 Regions Visited (32) 6400 Robots Destroyed (231) 1155 Value Destroyed (9072) 9072 Prototype IDs (54) 1080 Alien Tech Used (9) 1800 Bonus (14710) 14710 TOTAL SCORE: 38717 Bonus ------- High Alert Combat Kills 997 Follower Combat Kills 996 Network Hubs Disabled 600 Met Zhirov 300 Met Warlord at Base 500 MAIN.C Attacked Warlord 500 Warlord Defense Kill 120 Built Enhanced Grunts 300 A7 Reached Mainframe 300 Found Hidden Lab 3000 Used Core Reset Matrix 3000 Pursued by Intercept 1500 Win 3000 Friendly Fire -403 Cogmind --------- Core Integrity 322/600 Matter 125/300 Energy 517/700 System Corruption 0% Temperature Hot (210) Movement Flying (7) Location To Fleet Rendezvous Parts ------- > --- POWER (2) -------- Vortex Chain Reactor > --- PROPULSION (9) --- Nuclear Pulse Thruster Cooled Nuclear Pulse Thruster Cooled Nuclear Pulse Thruster Cooled Nuclear Pulse Thruster Electron Diverter Electron Diverter Electron Diverter Improved Diametric Drive Improved Q-thruster > --- UTILITY (13) ----- Experimental Sensor Array Experimental Signal Interpreter Long-range Terrain Scanner Advanced Terrain Scan Processor 0b10 Decoder Chip [Generic] Advanced Transmission Jammer Experimental Phase Shifter Advanced Cloaking Device System Mapper Deep Network Scanner Experimental System Shield Spacefold Activator > --- WEAPON (2) ------- Enhanced Quantum Rifle Nanosword > --- INVENTORY (8) ---- Improved System Restoration Module Integrated Thermoelectric Network Z-bomb Delivery System Peak State ------------ > --- POWER ------------ Vortex Chain Reactor > --- PROPULSION ------- Nuclear Pulse Thruster Cooled Nuclear Pulse Thruster Cooled Nuclear Pulse Thruster Cooled Nuclear Pulse Thruster Electron Diverter Electron Diverter Electron Diverter Improved Diametric Drive Improved Q-thruster > --- UTILITY ---------- Experimental Sensor Array Experimental Signal Interpreter Long-range Terrain Scanner Advanced Terrain Scan Processor 0b10 Decoder Chip [Generic] Advanced Transmission Jammer Experimental Phase Shifter Advanced Cloaking Device System Mapper Deep Network Scanner Experimental System Shield Spacefold Activator > --- WEAPON ----------- Enhanced Quantum Rifle Nanosword > --- INVENTORY -------- Nuclear Pulse Thruster Improved System Restoration Module Integrated Thermoelectric Network Z-bomb Delivery System [Rating: 213] Favorites ----------- Power Neutrino Core Engine Deuterium Engine Power Core Neutrino Core Reactor Vortex Chain Reactor Propulsion Nuclear Pulse Thruster Leg Aluminum Leg Flight Unit Nuclear Pulse Thruster Utility Hacking Suite Device Experimental Sensor Array Processor Advanced Terrain Scan Processor Hackware Hacking Suite Protection Light Armor Plating Artifact Spacefold Activator Weapon Tesla Rifle Energy Gun Tesla Rifle Energy Cannon EM Pulse Cannon Ballistic Cannon Advanced Assault Cannon Launcher Improved Proton Missile Launcher Special Weapon Mining Laser Slashing Weapon Great Axe Build | -11 -10 -10 -10 -9 -8 -7 -7 -7 -7 -6 -6 -6 -6 -6 -6 -5 -5 -5 -5 -4 -4 -4 -4 -4 -3 -3 -3 -3 -2 -2 -2 -1 ------- Run | Scr Mat Min Exi Min Mat Fac Low Low Zio Pro Fac Ext Cet Arc Hub Fac Upp Upp Zhi Pro Fac Upp Upp War Pro Res Arm Lab Res Tes Sec Acc Slots Evolved 22 | 4 . 2 . . 3 1 . . 1 2 . . 1 . . 1 . . 2 . . 1 . . . 2 . . 1 . . 1 Power 1 | . . . . . . . . . . 1 . . . . . . . . . . . . . . . . . . . . . . Propulsion 8 | 3 . . . . . . . . . 1 . . . . . 1 . . 1 . . . . . . 2 . . . . . . Utility 12 | 1 . 2 . . 3 1 . . 1 . . . 1 . . . . . . . . 1 . . . . . . 1 . . 1 Weapon 1 | . . . . . . . . . . . . . . . . . . . 1 . . . . . . . . . . . . . Parts Attached 169 | 7 9 1 . 2 16 8 7 2 5 1 4 16 3 1 10 16 . 1 7 3 8 2 . 8 1 9 7 5 3 3 1 3 Power 8 | 1 1 . . . 1 . . 1 . . 1 . . . . 1 . . 1 . . . . 1 . . . . . . . . Engine 3 | 1 1 . . . . . . . . . 1 . . . . . . . . . . . . . . . . . . . . . Core 3 | . . . . . 1 . . 1 . . . . . . . 1 . . . . . . . . . . . . . . . . Reactor 2 | . . . . . . . . . . . . . . . . . . . 1 . . . . 1 . . . . . . . . Propulsion 31 | 2 7 . . . 6 2 1 . . . 1 . . . . 1 . . 4 . . . . 1 . 4 . . . 1 . 1 Treads . | . . . . . . . . . . . . . . . . . . . . . . . . . . . . . . . . . Leg 4 | 2 2 . . . . . . . . . . . . . . . . . . . . . . . . . . . . . . . Wheel . | . . . . . . . . . . . . . . . . . . . . . . . . . . . . . . . . . Hover . | . . . . . . . . . . . . . . . . . . . . . . . . . . . . . . . . . Flight 27 | . 5 . . . 6 2 1 . . . 1 . . . . 1 . . 4 . . . . 1 . 4 . . . 1 . 1 Utility 54 | 3 1 1 . 1 5 2 . . 5 . 1 2 . . 1 8 . . 2 . 4 . . 5 1 5 1 2 3 . . 1 Device 28 | 1 . . . 1 1 1 . . 5 . . 1 . . 1 3 . . 1 . 2 . . 3 . 3 1 2 2 . . . Storage . | . . . . . . . . . . . . . . . . . . . . . . . . . . . . . . . . . Processor 8 | . 1 1 . . . 1 . . . . 1 1 . . . . . . . . . . . 1 . 2 . . . . . . Hackware 15 | . . . . . 4 . . . . . . . . . . 5 . . 1 . 2 . . 1 1 . . . 1 . . . Protection 2 | 2 . . . . . . . . . . . . . . . . . . . . . . . . . . . . . . . . Artifact 1 | . . . . . . . . . . . . . . . . . . . . . . . . . . . . . . . . 1 Weapon 76 | 1 . . . 1 4 4 6 1 . 1 1 14 3 1 9 6 . 1 . 3 4 2 . 1 . . 6 3 . 2 1 1 Energy Gun 25 | 1 . . . . 1 . 2 . . 1 1 7 1 1 1 2 . 1 . . 2 . . . . . 2 1 . . . 1 Energy Cannon 8 | . . . . . 2 1 3 . . . . . . . . . . . . 1 . . . . . . . 1 . . . . Ballistic Gun . | . . . . . . . . . . . . . . . . . . . . . . . . . . . . . . . . . Ballistic Cannon 6 | . . . . . . . . . . . . 2 . . 3 1 . . . . . . . . . . . . . . . . Launcher 16 | . . . . 1 1 . . . . . . 5 1 . 1 . . . . 1 1 1 . . . . 2 . . 1 1 . Special Weapon 1 | . . . . . . 1 . . . . . . . . . . . . . . . . . . . . . . . . . . Impact Weapon . | . . . . . . . . . . . . . . . . . . . . . . . . . . . . . . . . . Slashing Weapon 20 | . . . . . . 2 1 1 . . . . 1 . 4 3 . . . 1 1 1 . 1 . . 2 1 . 1 . . Piercing Weapon . | . . . . . . . . . . . . . . . . . . . . . . . . . . . . . . . . . Special Melee Weapon . | . . . . . . . . . . . . . . . . . . . . . . . . . . . . . . . . . Unidentified Prototypes 27 | . . . . 1 2 . . . 2 . . . . . 1 1 . . 3 . 1 . . 6 . 1 2 2 2 2 . 1 Parts Lost 4 | . . . . . . . . . . . . 1 . . . 1 . . . . . . . 2 . . . . . . . . Power . | . . . . . . . . . . . . . . . . . . . . . . . . . . . . . . . . . Propulsion . | . . . . . . . . . . . . . . . . . . . . . . . . . . . . . . . . . Utility 4 | . . . . . . . . . . . . 1 . . . 1 . . . . . . . 2 . . . . . . . . Weapon . | . . . . . . . . . . . . . . . . . . . . . . . . . . . . . . . . . Highest Loss Streak 2 | . . . . . . . . . . . . 1 . . . 1 . . . . . . . 2 . . . . . . . . To Critical Strikes . | . . . . . . . . . . . . . . . . . . . . . . . . . . . . . . . . . Average Slot Usage (%) 96 | . 95 90 90 97 95 100 99 100 100 100 98 99 94 94 99 98 100 100 96 95 99 95 95 93 95 94 94 93 92 92 92 92 Engine 1 | . 12 10 10 10 . . . . . . 4 5 5 5 5 . . . . . . . . . . . . . . . . . Core 4 | . . . . . 6 7 7 7 6 6 5 5 5 5 5 9 10 10 8 4 4 4 4 1 . . . . . . . . Reactor 1 | . . . . . . . . . . . . . . . . . . . . 4 4 4 4 4 4 4 4 4 4 4 4 3 Flight 30 | . 18 40 40 40 30 28 28 28 26 26 28 29 27 27 27 30 31 31 30 33 33 31 31 31 31 32 37 37 36 36 36 34 Device 18 | . 12 10 10 17 15 21 21 21 26 26 23 19 16 16 21 20 21 21 17 14 14 13 13 17 18 17 18 20 19 20 20 19 Processor 13 | . 4 19 20 20 15 14 14 14 13 13 11 13 16 16 16 15 15 15 14 14 14 13 13 13 13 12 12 12 12 12 12 11 Hackware 15 | . . . . . 18 21 21 21 20 20 17 17 16 16 16 14 15 15 17 19 18 18 18 14 18 17 13 12 12 12 12 11 Energy Gun 3 | . 12 10 10 4 3 . 3 6 . 1 5 4 2 5 2 2 . . 4 1 3 4 4 4 4 4 3 3 4 4 3 2 Slashing Weapon 2 | . . . . . . . 1 . 6 4 . . 2 . 2 2 5 4 . 1 2 2 4 4 4 4 3 3 4 4 4 3 Naked Turns . | . . . . . . . . . . . . . . . . . . . . . . . . . . . . . . . . . Heaviest Build 61 | 11 9 8 8 10 13 14 16 21 21 22 32 36 31 31 33 39 38 39 39 38 43 43 39 52 50 50 52 50 50 50 60 61 Greatest Support 92 | 20 40 16 16 16 20 21 21 22 22 22 33 33 33 33 33 39 39 39 45 45 45 45 45 53 53 69 69 69 69 72 82 92 Greatest Overweight (x) 2 | . 2 . . . . . . . . . . 1 . . . . . . 1 . . . . . . . . . . 1 . . Average Overweight (x) . | . . . . . . . . . . . . . . . . . . . . . . . . . . . . . . . . . Largest Inventory Capacity 8 | 4 4 4 4 4 4 5 5 5 5 5 5 6 6 6 6 6 6 6 6 6 6 6 6 6 6 6 6 6 6 6 8 8 Average Capacity 5 | 4 4 4 4 4 4 4 5 5 5 5 5 5 6 6 6 6 6 6 6 6 6 6 6 6 6 6 6 6 6 6 6 8 Most Carried 6 | 3 4 4 4 4 4 5 5 5 5 5 5 6 6 6 6 6 6 6 6 6 6 5 5 6 6 6 6 6 6 6 6 5 Average Carried 5 | 1 3 3 4 3 2 4 4 5 4 4 4 5 6 6 5 5 6 6 5 6 5 5 5 5 5 5 5 5 4 4 4 3 Final Capacity 8 | 4 4 4 4 4 4 5 5 5 5 5 5 6 6 6 6 6 6 6 6 6 6 6 6 6 6 6 6 6 6 6 8 8 Final Carried 6 | 2 4 4 4 4 3 5 5 5 5 5 5 6 6 6 6 6 6 6 6 6 5 5 5 6 6 5 6 6 4 3 5 3 Class Distribution -------------------- 47% | Wizard-Ninja 34% | Wizard-Scout 7% | Hacker-Scout 5% | Scavenger-Sprinter Dominant Class ---------------- Hacker-Mutant | -10/Materials Scavenger-Sprinter | -10/Mines Scavenger-Sprinter | -10/Exiles Scavenger-Scout | -9/Mines Hacker-Scout | -8/Materials Wizard-Scout | -7/Factory Wizard-Scout | -7/Lower Caves Wizard-Scout | -7/Lower Caves Wizard-Ninja | -7/Zion Wizard-Ninja | -6/Proximity Caves Wizard-Scout | -6/Factory Wizard-Scout | -6/Extension Wizard-Scout | -6/Cetus Wizard-Scout | -6/Archives Wizard-Ninja | -6/Hub_04(d) Wizard-Scout | -5/Factory Wizard-Ninja | -5/Upper Caves Wizard-Ninja | -5/Upper Caves Wizard-Scout | -5/Zhirov Wizard-Scout | -4/Proximity Caves Wizard-Ninja | -4/Factory Wizard-Ninja | -4/Upper Caves Wizard-Ninja | -4/Upper Caves Wizard-Ninja | -4/Warlord Wizard-Ninja | -3/Proximity Caves Wizard-Ninja | -3/Research Wizard-Ninja | -3/Armory Wizard-Ninja | -3/Lab Wizard-Ninja | -2/Research Wizard-Ninja | -2/Testing Wizard-Ninja | -2/Section 7 Wizard-Ninja | -1/Access Resources | -11 -10 -10 -10 -9 -8 -7 -7 -7 -7 -6 -6 -6 -6 -6 -6 -5 -5 -5 -5 -4 -4 -4 -4 -4 -3 -3 -3 -3 -2 -2 -2 -1 ----------- Run | Scr Mat Min Exi Min Mat Fac Low Low Zio Pro Fac Ext Cet Arc Hub Fac Upp Upp Zhi Pro Fac Upp Upp War Pro Res Arm Lab Res Tes Sec Acc Matter Collected 2731 | 270 90 17 . 16 373 60 90 20 26 24 40 308 30 . 140 184 30 10 . 128 42 83 8 85 10 20 322 . 110 . 100 95 Remotely . | . . . . . . . . . . . . . . . . . . . . . . . . . . . . . . . . . Salvage Created 10965 | 250 260 159 . . 2193 229 883 322 . 42 443 1880 82 126 395 884 79 196 . 360 213 313 . 100 421 289 331 . 35 264 145 71 Parts 491 | 17 25 11 . 7 99 8 23 9 . 2 25 94 15 5 8 27 2 10 . 7 11 14 . 1 5 17 20 . 1 12 9 7 Haulers Intercepted 8 | . 2 . . . 4 . . . . . . . . . 2 . . . . . . . . . . . . . . . . . Recyclers Shooed 2 | . . . . . . . . . . . . 1 . . . 1 . . . . . . . . . . . . . . . . Parts Field Recycled . | . . . . . . . . . . . . . . . . . . . . . . . . . . . . . . . . . Retrieved Matter . | . . . . . . . . . . . . . . . . . . . . . . . . . . . . . . . . . Parts Self-Destructed . | . . . . . . . . . . . . . . . . . . . . . . . . . . . . . . . . . Prevented . | . . . . . . . . . . . . . . . . . . . . . . . . . . . . . . . . . Kills | -11 -10 -10 -10 -9 -8 -7 -7 -7 -7 -6 -6 -6 -6 -6 -6 -5 -5 -5 -5 -4 -4 -4 -4 -4 -3 -3 -3 -3 -2 -2 -2 -1 ------- Run | Scr Mat Min Exi Min Mat Fac Low Low Zio Pro Fac Ext Cet Arc Hub Fac Upp Upp Zhi Pro Fac Upp Upp War Pro Res Arm Lab Res Tes Sec Acc Combat Hostiles Destroyed 146 | . 8 2 . 3 38 3 7 4 . 2 7 27 3 2 1 7 . 2 . 3 4 6 . 1 1 1 7 . . 2 5 . Melee 8 | . . . . . . . 1 1 . . . . . . . . . . . . . . . . . . 3 . . . 3 . Guns 58 | . 5 2 . 2 17 . 2 3 . 1 5 7 2 . 1 1 . 2 . . 2 3 . 1 . . . . . 2 . . Cannons 14 | . . . . . 9 3 . . . . . 1 . . . 1 . . . . . . . . . . . . . . . . AOE 38 | . 3 . . 1 10 . . . . 1 1 9 . . . . . . . 3 2 3 . . . . 3 . . . 2 . Classes Destroyed 17 | 3 5 . . 1 4 . 1 . . . . 3 . . . . . . . . . . . . . . . . . . . . Worker 12 | 2 . 1 . . 3 . . . . . 1 1 . . 2 . . . . . 1 . . . . 1 . . . . . . Builder 3 | . 1 . . . . . . . . . . . . . . 1 . . . . 1 . . . . . . . . . . . Tunneler 7 | 5 . 1 . . 1 . . . . . . . . . . . . . . . . . . . . . . . . . . . Hauler 8 | . 2 . . . 4 . . . . . . . . . 2 . . . . . . . . . . . . . . . . . Recycler 2 | 1 . . . . . . . . . . . . . . . 1 . . . . . . . . . . . . . . . . Operator 11 | . . . . . 4 . . . . . . 4 . . 1 1 . . . . . . . . . . . . . . . 1 Watcher 40 | . 3 . . . 5 2 . . . . 1 3 1 . 1 7 . . . . 3 . . . . 6 3 . 1 2 1 1 Swarmer 37 | . 4 2 . . 5 . 1 4 . 2 . 2 1 . . . . . . 3 3 4 . . . . 3 . . . 3 . Grunt 52 | . 4 . . 2 21 2 4 . . . 3 11 . . . 4 . 1 . . . . . . . . . . . . . . Brawler 8 | . . . . 1 . . 1 . . . . 3 . . . 2 . . . . . . . 1 . . . . . . . . Duelist 5 | . . . . . 2 . . . . . 1 1 . . . . . 1 . . . . . . . . . . . . . . Protector 2 | . . . . . 1 . . . . . . 1 . . . . . . . . . . . . . . . . . . . . Sentry 24 | . . . . . 9 1 . . . . 3 4 . 2 1 . . . . . 1 . . . 1 1 1 . . . . . Hunter 5 | . . . . . . . . . . . . 2 1 . . . . . . . . 2 . . . . . . . . . . Programmer 5 | . . . . . . . . . . . . 1 . . . 1 . . . . . . . . . . 3 . . . . . Behemoth 2 | . . . . . . . . . . . . 2 . . . . . . . . . . . . . . . . . . . . Cetus Guard 1 | . . . . . . . . . . . . . 1 . . . . . . . . . . . . . . . . . . . Tracker 4 | . . . . . . . . . . . . . . . . . . . . . . . . . . . . . . 2 2 . Packrat 2 | . . . . . . . 2 . . . . . . . . . . . . . . . . . . . . . . . . . Thug 1 | . . . . . . . . . . . . 1 . . . . . . . . . . . . . . . . . . . . Guerrilla 1 | . . . . . . . . . . . . 1 . . . . . . . . . . . . . . . . . . . . Mutant 1 | . . . . . . . 1 . . . . . . . . . . . . . . . . . . . . . . . . . Best Kill Streak 10 | 4 4 4 . 2 7 1 2 3 . 2 3 10 2 2 4 2 . 2 . 3 3 4 . 1 1 4 3 . 1 2 3 1 Combat Bots Only 10 | . 4 2 . 2 3 1 2 3 . 2 3 10 2 2 1 2 . 2 . 3 3 4 . 1 1 1 3 . . 2 3 . Max Kills in Single Turn 3 | 1 2 1 . 1 3 1 1 1 . 1 2 2 1 1 3 1 . 1 . 2 2 3 . 1 1 2 1 . 1 1 1 1 Gunslinging . | . . . . . . . . . . . . . . . . . . . . . . . . . . . . . . . . . Exploded 3 | . 2 . . 1 3 . . . . 1 1 2 . . . . . . . 2 1 3 . . . . 1 . . . 1 . Melee 1 | . . . . . . . 1 1 . . . . . . . . . . . . . . . . . . 1 . . . 1 . Uniques/NPCs Destroyed . | . . . . . . . . . . . . . . . . . . . . . . . . . . . . . . . . . Combat | -11 -10 -10 -10 -9 -8 -7 -7 -7 -7 -6 -6 -6 -6 -6 -6 -5 -5 -5 -5 -4 -4 -4 -4 -4 -3 -3 -3 -3 -2 -2 -2 -1 -------- Run | Scr Mat Min Exi Min Mat Fac Low Low Zio Pro Fac Ext Cet Arc Hub Fac Upp Upp Zhi Pro Fac Upp Upp War Pro Res Arm Lab Res Tes Sec Acc Damage Taken 4746 | . 225 4 . 24 897 39 137 146 . 60 135 598 77 141 214 133 . 6 . 17 159 63 . 245 35 37 120 144 14 615 265 196 Core 3807 | . 148 4 . 18 745 35 115 123 . 50 103 460 59 116 172 106 . 6 . 13 123 48 . 194 27 29 96 120 14 488 230 165 Absorbed by Shields 67 | . . . . . . . . . . . . 14 53 . . . . . . . . . . . . . . . . . . . Redirected to Core 2895 | . 125 . . 18 481 15 67 71 . 32 69 404 59 81 143 85 . . . 13 123 48 . 194 27 29 80 78 . 429 115 109 Core Remaining (%) 87 | 100 . . . 100 100 . . . . 100 . . . . 71 . . . . 100 . . . . 95 . . 80 . . 74 53 Volleys Fired 733 | 17 38 9 . 12 151 17 42 28 . 13 35 125 17 12 16 58 . 19 . 3 25 12 . 5 6 23 19 1 . 15 5 10 Largest 1 | 1 1 1 . 1 1 1 1 1 . 1 1 1 1 1 1 1 . 1 . 1 1 1 . 1 1 1 1 1 . 1 1 1 Hottest 100 | 40 40 40 . 40 63 100 75 55 . 55 55 60 60 60 60 60 . 60 . 43 65 65 . 65 65 65 65 65 . 65 65 65 Shots Fired 733 | 17 38 9 . 12 151 17 42 28 . 13 35 125 17 12 16 58 . 19 . 3 25 12 . 5 6 23 19 1 . 15 5 10 Gun 593 | 17 38 9 . 11 99 . 34 28 . 13 35 102 17 12 11 49 . 19 . . 20 9 . 5 6 23 7 1 . 15 3 10 Cannon 76 | . . . . . 36 15 8 . . . . 4 . . 4 9 . . . . . . . . . . . . . . . . Launcher 62 | . . . . 1 16 . . . . . . 19 . . 1 . . . . 3 5 3 . . . . 12 . . . 2 . Special 2 | . . . . . . 2 . . . . . . . . . . . . . . . . . . . . . . . . . . Kinetic 17 | . . . . . . . . . . . . 4 . . 4 9 . . . . . . . . . . . . . . . . Thermal 32 | . . . . . . 2 . . . . . . . . . . . . . . . . . . . . 1 1 . 15 3 10 Explosive 31 | . . . . 1 16 . . . . . . . . . . . . . . . . . . . . . 12 . . . 2 . Electromagnetic 653 | 17 38 9 . 11 135 15 42 28 . 13 35 121 17 12 12 49 . 19 . 3 25 12 . 5 6 23 6 . . . . . Robot Hit Streak 43 | 5 10 13 . 20 43 9 28 16 . 5 40 41 30 16 17 13 . 10 . 5 10 11 . 6 7 7 14 . . 14 16 17 Robot Miss Streak 3 | 1 2 . . 1 2 1 2 1 . 2 . 3 1 . 2 2 . 2 . . 1 1 . 1 . 2 . . . 1 . 1 Penetration Max . | . . . . . . . . . . . . . . . . . . . . . . . . . . . . . . . . . Secondary Targets . | . . . . . . . . . . . . . . . . . . . . . . . . . . . . . . . . . Shots Hit Robots 645 | 13 29 9 . 10 123 13 42 26 . 9 35 93 16 12 8 55 2 16 . 6 22 8 . 4 17 18 16 . 2 19 12 10 Core Hits 402 | 8 17 6 . 5 96 9 15 13 . 4 22 62 7 5 12 22 2 9 . 9 15 11 . 4 7 9 16 . . 10 5 2 Critical Kills . | . . . . . . . . . . . . . . . . . . . . . . . . . . . . . . . . . Critical Parts Destroyed . | . . . . . . . . . . . . . . . . . . . . . . . . . . . . . . . . . Critical Strikes 16 | . 2 . . . 1 . 2 . . . 2 4 1 . . 2 . . . . . . . . . . 1 . . . 1 . Blast 1 | . . . . . . . . . . . . 1 . . . . . . . . . . . . . . . . . . . . Corrupt 13 | . 2 . . . 1 . 2 . . . 2 3 1 . . 2 . . . . . . . . . . . . . . . . Sever 2 | . . . . . . . . . . . . . . . . . . . . . . . . . . . 1 . . . 1 . Melee Attacks 213 | . . . . . . 3 7 4 . . . . 8 . 5 20 6 . . 10 15 3 2 4 11 19 26 2 5 22 32 9 Impact . | . . . . . . . . . . . . . . . . . . . . . . . . . . . . . . . . . Slashing 213 | . . . . . . 3 7 4 . . . . 8 . 5 20 6 . . 10 15 3 2 4 11 19 26 2 5 22 32 9 Piercing . | . . . . . . . . . . . . . . . . . . . . . . . . . . . . . . . . . Sneak Attacks 5 | . . . . . . . 2 . . . . . . . . 1 . . . . . . . . . . 2 . . . . . Combat Hostiles . | . . . . . . . . . . . . . . . . . . . . . . . . . . . . . . . . . Follow-up Attacks . | . . . . . . . . . . . . . . . . . . . . . . . . . . . . . . . . . Damage Inflicted 24017 | 171 681 119 . 264 4242 439 1061 484 . 211 920 3678 348 224 1101 1783 160 319 . 602 925 401 . 85 920 848 1336 . 160 828 1294 413 Guns 11031 | 171 417 119 . 142 1654 . 625 442 . 153 681 1947 348 224 202 1255 . 319 . . 495 201 . 85 130 531 158 . . 493 . 239 Cannons 1827 | . . . . . 889 408 186 . . . . 143 . . . 201 . . . . . . . . . . . . . . . . Explosions 7106 | . 264 . . 122 1699 31 . . . 58 239 1588 . . 899 60 . . . 169 376 200 . . . 141 590 . . . 670 . Melee 4053 | . . . . . . . 250 42 . . . . . . . 267 160 . . 433 54 . . . 790 176 588 . 160 335 624 174 Ramming . | . . . . . . . . . . . . . . . . . . . . . . . . . . . . . . . . . Kinetic 344 | . . . . . . . . . . . . 143 . . . 201 . . . . . . . . . . . . . . . . Thermal 3258 | . 264 . . 122 783 31 . . . 58 239 404 . . 84 60 . . . 52 141 115 . . . 141 32 . . 493 . 239 Explosive 2176 | . . . . . 916 . . . . . . . . . . . . . . . . . . . . . 590 . . . 670 . Electromagnetic 14186 | 171 417 119 . 142 2543 408 811 442 . 153 681 3131 348 224 1017 1255 . 319 . 117 730 286 . 85 130 531 126 . . . . . Impact . | . . . . . . . . . . . . . . . . . . . . . . . . . . . . . . . . . Slashing 4053 | . . . . . . . 250 42 . . . . . . . 267 160 . . 433 54 . . . 790 176 588 . 160 335 624 174 Piercing . | . . . . . . . . . . . . . . . . . . . . . . . . . . . . . . . . . Highest Corruption 5 | . 1 1 1 1 . . . . . . . . . . 3 . . . . . 1 . . 5 . . . . . . . . Average Corruption 1 | . 1 1 1 1 . . . . . . . . . . 1 . . . . . 1 . . 3 . . . . . . . . Corruption Purged 6 | . . . . . . . . . . . . . . . . . . . . . 1 . . 5 . . . . . . . . Corruption Blocked . | . . . . . . . . . . . . . . . . . . . . . . . . . . . . . . . . . Effects 9 | . . 2 1 5 . . . . . . . . . . . . . . . . . . . 1 . . . . . . . . Message Errors 1 | . . . 1 . . . . . . . . . . . . . . . . . . . . . . . . . . . . . Matter Fused 2 | . . 1 . 1 . . . . . . . . . . . . . . . . . . . . . . . . . . . . Heat Flow Errors 1 | . . . . 1 . . . . . . . . . . . . . . . . . . . . . . . . . . . . Energy Discharges 3 | . . 1 . 1 . . . . . . . . . . . . . . . . . . . 1 . . . . . . . . Data Loss (minor) 2 | . . . . 2 . . . . . . . . . . . . . . . . . . . . . . . . . . . . Overload Shots . | . . . . . . . . . . . . . . . . . . . . . . . . . . . . . . . . . Overflow Damage 1073 | . 3 . . . 53 22 7 . . . . 72 . . 4 74 . . . 102 2 . . . 149 25 123 . 50 68 260 59 Projectiles 48 | . . . . . . 22 . . . . . 26 . . . . . . . . . . . . . . . . . . . . Explosions 341 | . 3 . . . 53 . . . . . . 46 . . 4 38 . . . . 2 . . . . 25 . . . . 170 . Melee 684 | . . . . . . . 7 . . . . . . . . 36 . . . 102 . . . . 149 . 123 . 50 68 90 59 Knockbacks . | . . . . . . . . . . . . . . . . . . . . . . . . . . . . . . . . . Impact . | . . . . . . . . . . . . . . . . . . . . . . . . . . . . . . . . . Kinetic . | . . . . . . . . . . . . . . . . . . . . . . . . . . . . . . . . . Secondary . | . . . . . . . . . . . . . . . . . . . . . . . . . . . . . . . . . Self-Inflicted Damage 347 | . . . . . 179 . . . . . . 34 . . 134 . . . . . . . . . . . . . . . . . Shots 9 | . . . . . 5 . . . . . . 1 . . 3 . . . . . . . . . . . . . . . . . Rammed . | . . . . . . . . . . . . . . . . . . . . . . . . . . . . . . . . . Targets Rammed . | . . . . . . . . . . . . . . . . . . . . . . . . . . . . . . . . . Kicked . | . . . . . . . . . . . . . . . . . . . . . . . . . . . . . . . . . Crushed . | . . . . . . . . . . . . . . . . . . . . . . . . . . . . . . . . . Highest Temperature 256 | 60 138 10 . 256 45 8 40 . . 6 156 232 7 16 12 21 . 15 . . 15 3 . 12 . 72 88 45 38 38 13 135 Average Temperature 37 | 19 40 6 . 69 8 5 11 . . 4 66 56 4 10 6 6 . 7 . . 9 3 . 12 . 24 25 21 21 13 3 97 Received Heat Transfer 1320 | . 111 . . 24 549 27 72 9 . . 51 216 . 18 . 45 . 9 . . 27 . . . 9 9 48 78 . . 18 . Siege Activations . | . . . . . . . . . . . . . . . . . . . . . . . . . . . . . . . . . Robots Corrupted 37 | . 1 . . . 2 . 5 . . . 1 11 1 2 2 6 . . . . 1 . . . 1 3 1 . . . . . Combat Hostiles 29 | . . . . . 2 . 5 . . . 1 10 1 2 . 5 . . . . . . . . 1 1 1 . . . . . Parts Fried 120 | . 5 . . . 13 4 6 1 . 2 5 34 4 1 6 16 . 2 . . 11 1 . . . 8 1 . . . . . Impact Corruptions . | . . . . . . . . . . . . . . . . . . . . . . . . . . . . . . . . . Robots Melted . | . . . . . . . . . . . . . . . . . . . . . . . . . . . . . . . . . Combat Hostiles . | . . . . . . . . . . . . . . . . . . . . . . . . . . . . . . . . . Parts Melted 4 | . 1 . . . . . . . . . . . . . . . . . . . . . . . . . . . . 3 . . Heat Transferred 3027 | . 350 . . 100 626 50 . . . 50 200 350 . . 150 50 . . . 50 50 100 . . . 50 37 . . 518 . 296 Parts Sabotaged . | . . . . . . . . . . . . . . . . . . . . . . . . . . . . . . . . . Parts Stolen . | . . . . . . . . . . . . . . . . . . . . . . . . . . . . . . . . . Parts Stripped . | . . . . . . . . . . . . . . . . . . . . . . . . . . . . . . . . . Power Chain Reactions 27 | . 4 . . 1 8 1 . . . 1 2 4 . . 1 1 . . . 1 1 1 . . . 1 . . . . . . Missiles Intercepted . | . . . . . . . . . . . . . . . . . . . . . . . . . . . . . . . . . Alert | -11 -10 -10 -10 -9 -8 -7 -7 -7 -7 -6 -6 -6 -6 -6 -6 -5 -5 -5 -5 -4 -4 -4 -4 -4 -3 -3 -3 -3 -2 -2 -2 -1 ------- Run | Scr Mat Min Exi Min Mat Fac Low Low Zio Pro Fac Ext Cet Arc Hub Fac Upp Upp Zhi Pro Fac Upp Upp War Pro Res Arm Lab Res Tes Sec Acc Peak Influence 1233 | 40 301 70 . 116 1233 451 . . . . 344 664 330 212 594 430 . . . . 298 . . . . 329 526 . 43 215 575 480 Initial 385 | . 19 . . . 31 385 . . . . 24 123 157 92 50 213 . . . . 38 . . . . 46 . . . 17 90 261 Average 279 | 15 130 61 . 81 798 355 . . . . 170 426 250 170 212 186 . . . . 127 . . . . 148 185 . 20 99 265 352 Maximum Alert Level 4 | . 1 . . . 4 2 . . . . 1 2 1 1 2 2 . . . . 1 . . . . 1 2 . . 1 2 2 Low Security (%) 46 | 100 65 100 . 100 10 1 . . . . 56 6 53 50 70 46 . . . . 73 . . . . 54 67 . 100 93 39 . Level 1 32 | . 34 . . . 3 80 . . . . 43 36 46 49 5 50 . . . . 26 . . . . 45 26 . . 6 34 85 Level 2 12 | . . . . . 18 18 . . . . . 57 . . 23 3 . . . . . . . . . . 5 . . . 25 14 Level 3 4 | . . . . . 42 . . . . . . . . . . . . . . . . . . . . . . . . . . . Level 4 3 | . . . . . 25 . . . . . . . . . . . . . . . . . . . . . . . . . . . Level 5 . | . . . . . . . . . . . . . . . . . . . . . . . . . . . . . . . . . High Security . | . . . . . . . . . . . . . . . . . . . . . . . . . . . . . . . . . Max Security . | . . . . . . . . . . . . . . . . . . . . . . . . . . . . . . . . . Squads Dispatched 45 | . . . . . 6 3 . . . . . 5 . . 2 7 . . . . 3 . . . . 3 2 . . 5 5 4 Investigation 10 | . . . . . 1 . . . . . . . . . . 5 . . . . 1 . . . . 3 . . . . . . Extermination 4 | . . . . . . 1 . . . . . . . . . 1 . . . . 1 . . . . . 1 . . . . . Reinforcement 20 | . . . . . 4 2 . . . . . 4 . . 2 1 . . . . 1 . . . . . 1 . . 2 2 1 Assault 2 | . . . . . 1 . . . . . . 1 . . . . . . . . . . . . . . . . . . . . Garrison . | . . . . . . . . . . . . . . . . . . . . . . . . . . . . . . . . . Intercept 9 | . . . . . . . . . . . . . . . . . . . . . . . . . . . . . . 3 3 3 Searches Triggered 1 | . . . . . . . . . . . . . . . . . . . . . . . . . . . . . . . . 1 Construction Impeded . | . . . . . . . . . . . . . . . . . . . . . . . . . . . . . . . . . Haulers Reinforced 1 | . . . . . . . . . . . . . . . . . . . . . 1 . . . . . . . . . . . Active Scanning Responses . | . . . . . . . . . . . . . . . . . . . . . . . . . . . . . . . . . Cargo Convoy Interrupts . | . . . . . . . . . . . . . . . . . . . . . . . . . . . . . . . . . Stealth | -11 -10 -10 -10 -9 -8 -7 -7 -7 -7 -6 -6 -6 -6 -6 -6 -5 -5 -5 -5 -4 -4 -4 -4 -4 -3 -3 -3 -3 -2 -2 -2 -1 --------- Run | Scr Mat Min Exi Min Mat Fac Low Low Zio Pro Fac Ext Cet Arc Hub Fac Upp Upp Zhi Pro Fac Upp Upp War Pro Res Arm Lab Res Tes Sec Acc Distress Signals 10 | . . . . . 5 . . . . . . 1 1 . 1 . . . . . . . . 1 . . . . . . . 1 Communications Jammed 62 | . . . . . . . . . . . . 1 18 . 1 3 . . . . 2 . . 3 . . . . . 10 15 9 Distress Signals 61 | . . . . . . . . . . . . 1 18 . 1 2 . . . . 2 . . 3 . . . . . 10 15 9 Times Spotted 349 | . 10 2 . 4 71 7 13 10 . 2 9 43 11 3 6 22 . 2 . 2 9 5 . 4 8 8 13 8 2 14 34 27 Peak Tracking Total 14 | . 4 2 . 2 12 2 4 5 . 1 5 8 5 2 10 3 . 1 . 3 3 4 . 1 6 2 2 8 1 5 13 14 Tactical Retreats 41 | . . . . . 13 1 3 3 . . 2 3 . . . 3 . . . . 1 . . 1 1 . 1 . . 2 5 2 Traps | -11 -10 -10 -10 -9 -8 -7 -7 -7 -7 -6 -6 -6 -6 -6 -6 -5 -5 -5 -5 -4 -4 -4 -4 -4 -3 -3 -3 -3 -2 -2 -2 -1 ------- Run | Scr Mat Min Exi Min Mat Fac Low Low Zio Pro Fac Ext Cet Arc Hub Fac Upp Upp Zhi Pro Fac Upp Upp War Pro Res Arm Lab Res Tes Sec Acc Traps Triggered 16 | . 2 . . . . . . . . . . 7 . . . 3 . . . . 2 . . . . . . . . . . 2 Indirectly 1 | . . . . . . . . . . . . 1 . . . . . . . . . . . . . . . . . . . . Trap Hack Attempts . | . . . . . . . . . . . . . . . . . . . . . . . . . . . . . . . . . Triggered . | . . . . . . . . . . . . . . . . . . . . . . . . . . . . . . . . . Disarmed . | . . . . . . . . . . . . . . . . . . . . . . . . . . . . . . . . . Reprogrammed 4 | . . . . . . . . . . . . . . . . . . . . . . . . . . 4 . . . . . . Reused . | . . . . . . . . . . . . . . . . . . . . . . . . . . . . . . . . . Traps Extracted . | . . . . . . . . . . . . . . . . . . . . . . . . . . . . . . . . . Installed . | . . . . . . . . . . . . . . . . . . . . . . . . . . . . . . . . . Triggered 13 | . 1 . . . . . . . . . . . . . . . . . . . . . . 12 . . . . . . . . Machines | -11 -10 -10 -10 -9 -8 -7 -7 -7 -7 -6 -6 -6 -6 -6 -6 -5 -5 -5 -5 -4 -4 -4 -4 -4 -3 -3 -3 -3 -2 -2 -2 -1 ---------- Run | Scr Mat Min Exi Min Mat Fac Low Low Zio Pro Fac Ext Cet Arc Hub Fac Upp Upp Zhi Pro Fac Upp Upp War Pro Res Arm Lab Res Tes Sec Acc Machines Disabled 60 | . . . . . 5 . 1 . . . . 1 1 1 25 1 . . . . . . . . . 1 7 1 . 8 8 . Max in Single Turn 13 | . . . . . 2 . 1 . . . . 1 . . 13 1 . . . . . . . . . 1 1 1 . 1 1 . Garrison Access 7 | . . . . . 1 1 . . . . . . . . 1 2 . . . . . . . . . 1 . . . . 1 . Network Hub 3 | . . . . . . . . . . . . . . . 3 . . . . . . . . . . . . . . . . . Machines Sabotaged . | . . . . . . . . . . . . . . . . . . . . . . . . . . . . . . . . . Garrisons Compromised . | . . . . . . . . . . . . . . . . . . . . . . . . . . . . . . . . . Overloaded Fab Kills . | . . . . . . . . . . . . . . . . . . . . . . . . . . . . . . . . . Hacking | -11 -10 -10 -10 -9 -8 -7 -7 -7 -7 -6 -6 -6 -6 -6 -6 -5 -5 -5 -5 -4 -4 -4 -4 -4 -3 -3 -3 -3 -2 -2 -2 -1 --------- Run | Scr Mat Min Exi Min Mat Fac Low Low Zio Pro Fac Ext Cet Arc Hub Fac Upp Upp Zhi Pro Fac Upp Upp War Pro Res Arm Lab Res Tes Sec Acc Machines Accessed 107 | . 8 . 4 . 4 4 1 1 1 . 2 11 3 1 2 15 . . 4 . 3 . 1 6 . 10 9 2 2 5 6 2 Terminals 67 | . 6 . . . 2 3 . . . . 2 11 3 . 1 8 . . . . 2 . . . . 6 9 . 2 5 5 2 Fabricators 9 | . . . . . . . . . . . . . . . . 5 . . . . 1 . . . . 3 . . . . . . Repair Stations . | . . . . . . . . . . . . . . . . . . . . . . . . . . . . . . . . . Recycling Units 2 | . 2 . . . . . . . . . . . . . . . . . . . . . . . . . . . . . . . Scanalyzers 1 | . . . . . 1 . . . . . . . . . . . . . . . . . . . . . . . . . . . Garrison Access 7 | . . . . . 1 1 . . . . . . . . 1 2 . . . . . . . . . 1 . . . . 1 . Total Hacks 410 | . 24 . 49 . 16 16 1 1 4 . 8 16 6 7 3 39 . . 17 . 11 . 1 13 . 41 68 20 2 30 13 4 Successful 378 | . 21 . 49 . 12 15 1 1 4 . 8 15 6 7 3 33 . . 17 . 10 . 1 13 . 37 64 20 2 28 9 2 Failed 32 | . 3 . . . 4 1 . . . . . 1 . . . 6 . . . . 1 . . . . 4 4 . . 2 4 2 Catastrophic 2 | . . . . . 1 . . . . . . . . . . . . . . . . . . . . 1 . . . . . . Database Lockouts . | . . . . . . . . . . . . . . . . . . . . . . . . . . . . . . . . . Manual 126 | . 13 . . . 7 5 . . 1 . 2 4 1 . 2 26 . . . . 9 . . 2 . 14 19 1 2 6 9 3 Terminals 263 | . 22 . . . 9 15 . . . . 8 16 6 . 2 26 . . . . 9 . . . . 34 68 . 2 30 12 4 Fabricators 19 | . . . . . . . . . . . . . . . . 11 . . . . 2 . . . . 6 . . . . . . Repair Stations . | . . . . . . . . . . . . . . . . . . . . . . . . . . . . . . . . . Recycling Units 2 | . 2 . . . . . . . . . . . . . . . . . . . . . . . . . . . . . . . Scanalyzers 6 | . . . . . 6 . . . . . . . . . . . . . . . . . . . . . . . . . . . Garrison Access 7 | . . . . . 1 1 . . . . . . . . 1 2 . . . . . . . . . 1 . . . . 1 . Terminal Hacks 298 | . 13 . 49 . 3 11 1 1 4 . 7 14 6 7 1 13 . . 17 . 6 . 1 13 . 26 52 20 1 25 5 2 Record 115 | . 3 . 49 . . 3 . . . . 1 2 5 7 . . . . 5 . . . . 6 . 3 9 20 . 2 . . Part Schematic 37 | . 3 . . . . 1 . . 4 . 1 . . . . 6 . . 4 . 3 . . . . 3 8 . . 4 . . Robot Schematic 4 | . . . . . . . . . . . . . . . . . . . . . . . . . . . 3 . . 1 . . Robot Analysis 6 | . . . . . . . . . . . . . . . . . . . 4 . . . . . . . 1 . . 1 . . Prototype ID Bank 12 | . . . . . . 1 . . . . . . . . . . . . 4 . . . . 5 . 1 . . . 1 . . Open Door 20 | . . . . . . . 1 1 . . 1 9 1 . . . . . . . . . 1 2 . 1 . . . 1 1 1 Open DSF 1 | . . . . . . . . . . . . . . . . . . . . . . . . . . 1 . . . . . . Level Access Points 5 | . 1 . . . . 1 . . . . . . . . 1 . . . . . . . . . . . . . . . 1 1 Branch Access Points 12 | . 1 . . . 1 2 . . . . 1 1 . . . 1 . . . . . . . . . 1 2 . 1 1 . . Emergency Access Points 7 | . . . . . . . . . . . 1 . . . . . . . . . . . . . . . 5 . . 1 . . Machine Index 2 | . . . . . . . . . . . . . . . . 1 . . . . 1 . . . . . . . . . . . Terminal Index 2 | . . . . . . . . . . . . . . . . . . . . . . . . . . . 1 . . 1 . . Fabricator Index 4 | . . . . . . 1 . . . . . . . . . . . . . . . . . . . 1 1 . . 1 . . Repair Station Index 2 | . . . . . . . . . . . . . . . . . . . . . . . . . . . 1 . . 1 . . Recycling Unit Index 2 | . . . . . . . . . . . . . . . . . . . . . . . . . . . 1 . . 1 . . Scanalyzer Index 2 | . . . . . . . . . . . . . . . . . . . . . . . . . . 1 1 . . . . . Garrison Index 2 | . . . . . . . . . . . . . . . . . . . . . . . . . . 1 1 . . . . . Alert Level 6 | . . . . . . . . . . . . 1 . . . . . . . . . . . . . . 5 . . . . . Unreport Threat 8 | . . . . . . 1 . . . . . 1 . . . . . . . . . . . . . 1 1 . . 2 2 . Locate Traps 3 | . . . . . 1 . . . . . . . . . . . . . . . . . . . . 1 1 . . . . . Reprogram Traps 1 | . . . . . . . . . . . . . . . . . . . . . . . . . . 1 . . . . . . Dispatch Records 3 | . . . . . . 1 . . . . 1 . . . . . . . . . . . . . . . . . . 1 . . Maintenance Status 3 | . 1 . . . . . . . . . . . . . . . . . . . . . . . . 1 1 . . . . . Security Status 1 | . . . . . . . . . . . . . . . . . . . . . . . . . . . 1 . . . . . Surveillance Status 1 | . . . . . . . . . . . . . . . . . . . . . . . . . . . 1 . . . . . Patrol Status 1 | . . . . . . . . . . . 1 . . . . . . . . . . . . . . . . . . . . . Investigation Status 1 | . 1 . . . . . . . . . . . . . . . . . . . . . . . . . . . . . . . Extermination Status 1 | . . . . . . . . . . . . . . . . . . . . . . . . . . 1 . . . . . . Reinforcement Status 2 | . . . . . . . . . . . . . . . . . . . . . . . . . . 1 . . . 1 . . Assault Status 1 | . . . . . . . . . . . . . . . . . . . . . . . . . . . . . . 1 . . Recall Investigation 9 | . 1 . . . . . . . . . . . . . . 5 . . . . 1 . . . . 2 . . . . . . Recall Reinforcements 5 | . . . . . . . . . . . . . . . . . . . . . 1 . . . . 1 1 . . 1 1 . Recall Assault 2 | . . . . . . . . . . . . . . . . . . . . . . . . . . 1 . . . 1 . . Hauler Manifests 2 | . . . . . . . . . . . . . . . . . . . . . . . . . . 1 1 . . . . . Registered Components 3 | . . . . . 1 . . . . . . . . . . . . . . . . . . . . 1 1 . . . . . Registered Prototypes 2 | . . . . . . . . . . . . . . . . . . . . . . . . . . 1 1 . . . . . Zone Layout 7 | . 2 . . . . . . . . . . . . . . . . . . . . . . . . . 4 . . 1 . . Protovariant Controls 1 | . . . . . . . . . . . . . . . . . . . . . . . . . . . . . . 1 . . Fabricator Hacks 19 | . . . . . . . . . . . . . . . . 11 . . . . 2 . . . . 6 . . . . . . Network Status 1 | . . . . . . . . . . . . . . . . 1 . . . . . . . . . . . . . . . . Load Schematic 9 | . . . . . . . . . . . . . . . . 5 . . . . 1 . . . . 3 . . . . . . Build 9 | . . . . . . . . . . . . . . . . 5 . . . . 1 . . . . 3 . . . . . . Repair Station Hacks . | . . . . . . . . . . . . . . . . . . . . . . . . . . . . . . . . . Recycling Unit Hacks 2 | . 2 . . . . . . . . . . . . . . . . . . . . . . . . . . . . . . . Report Inventory 2 | . 2 . . . . . . . . . . . . . . . . . . . . . . . . . . . . . . . Scanalyzer 6 | . . . . . 6 . . . . . . . . . . . . . . . . . . . . . . . . . . . Insert Component 1 | . . . . . 1 . . . . . . . . . . . . . . . . . . . . . . . . . . . Analyze 5 | . . . . . 5 . . . . . . . . . . . . . . . . . . . . . . . . . . . Garrison Access Hacks 7 | . . . . . 1 1 . . . . . . . . 1 2 . . . . . . . . . 1 . . . . 1 . Seal Access 7 | . . . . . 1 1 . . . . . . . . 1 2 . . . . . . . . . 1 . . . . 1 . Unauthorized Hacks 46 | . 6 . . . 2 3 . . . . 1 1 . . 1 7 . . . . 2 . . . . 4 12 . 1 3 3 . Terminals 46 | . 6 . . . 2 3 . . . . 1 1 . . 1 7 . . . . 2 . . . . 4 12 . 1 3 3 . Assimilate 7 | . . . . . . . . . . . . . . . . 1 . . . . . . . . . 1 3 . 1 . 1 . Botnet 39 | . 6 . . . 2 3 . . . . 1 1 . . 1 6 . . . . 2 . . . . 3 9 . . 3 2 . Fabricators . | . . . . . . . . . . . . . . . . . . . . . . . . . . . . . . . . . Repair Stations . | . . . . . . . . . . . . . . . . . . . . . . . . . . . . . . . . . Recycling Units . | . . . . . . . . . . . . . . . . . . . . . . . . . . . . . . . . . Scanalyzers . | . . . . . . . . . . . . . . . . . . . . . . . . . . . . . . . . . Garrison Access . | . . . . . . . . . . . . . . . . . . . . . . . . . . . . . . . . . Data Cores Recovered 3 | . . . . . 1 . . . . . . . . . . 1 . . . . . . . . . . . . . . . 1 Used 1 | . . . . . . . . . . . . . . . . 1 . . . . . . . . . . . . . . . . Hacking Detections 38 | . 4 . . . 3 3 . . . . . 4 1 . 1 8 . . . . 1 . . . . 6 2 . . 3 1 1 Full Trace Events 11 | . 1 . . . 1 . . . . . . . . . . 5 . . . . 1 . . . . 3 . . . . . . Feedback Events 1 | . . . . . . . . . . . . . . . . 1 . . . . . . . . . . . . . . . . Hackware Fried 1 | . . . . . . . . . . . . . . . . 1 . . . . . . . . . . . . . . . . Feedback Blocked . | . . . . . . . . . . . . . . . . . . . . . . . . . . . . . . . . . Robot Schematics Acquired 4 | . . . . . . . . . . . . . . . . . . . . . . . . . . . 3 . . 1 . . Robots Built . | . . . . . . . . . . . . . . . . . . . . . . . . . . . . . . . . . Authchips . | . . . . . . . . . . . . . . . . . . . . . . . . . . . . . . . . . Time . | . . . . . . . . . . . . . . . . . . . . . . . . . . . . . . . . . Total Robot Build Rating . | . . . . . . . . . . . . . . . . . . . . . . . . . . . . . . . . . Part Schematics Acquired 36 | . 3 . . . . 1 . . 4 . 1 . . . . 5 . . 4 . 3 . . . . 3 8 . . 4 . . Parts Built 9 | . . . . . . . . . . . . . . . . 5 . . . . 1 . . . . 3 . . . . . . Authchips . | . . . . . . . . . . . . . . . . . . . . . . . . . . . . . . . . . Time 916 | . . . . . . . . . . . . . . . . 489 . . . . 93 . . . . 334 . . . . . . Total Part Build Rating 65 | . . . . . . . . . . . . . . . . 35 . . . . 7 . . . . 23 . . . . . . Parts Repaired . | . . . . . . . . . . . . . . . . . . . . . . . . . . . . . . . . . Time . | . . . . . . . . . . . . . . . . . . . . . . . . . . . . . . . . . Parts Recycled . | . . . . . . . . . . . . . . . . . . . . . . . . . . . . . . . . . Recycled Matter . | . . . . . . . . . . . . . . . . . . . . . . . . . . . . . . . . . Retrieved Matter . | . . . . . . . . . . . . . . . . . . . . . . . . . . . . . . . . . Retrieved Components . | . . . . . . . . . . . . . . . . . . . . . . . . . . . . . . . . . Parts Scanalyzed 1 | . . . . . 1 . . . . . . . . . . . . . . . . . . . . . . . . . . . Part Schematics Acquired . | . . . . . . . . . . . . . . . . . . . . . . . . . . . . . . . . . Parts Damaged . | . . . . . . . . . . . . . . . . . . . . . . . . . . . . . . . . . Bothacking | -11 -10 -10 -10 -9 -8 -7 -7 -7 -7 -6 -6 -6 -6 -6 -6 -5 -5 -5 -5 -4 -4 -4 -4 -4 -3 -3 -3 -3 -2 -2 -2 -1 ------------ Run | Scr Mat Min Exi Min Mat Fac Low Low Zio Pro Fac Ext Cet Arc Hub Fac Upp Upp Zhi Pro Fac Upp Upp War Pro Res Arm Lab Res Tes Sec Acc Used RIF Installer . | . . . . . . . . . . . . . . . . . . . . . . . . . . . . . . . . . Robots Hacked . | . . . . . . . . . . . . . . . . . . . . . . . . . . . . . . . . . Non-combat . | . . . . . . . . . . . . . . . . . . . . . . . . . . . . . . . . . Combat . | . . . . . . . . . . . . . . . . . . . . . . . . . . . . . . . . . Robot Hacks Applied . | . . . . . . . . . . . . . . . . . . . . . . . . . . . . . . . . . Relay Couplers Released 1 | . . . . . . . . . . . . . . . . 1 . . . . . . . . . . . . . . . . Programmers 1 | . . . . . . . . . . . . . . . . 1 . . . . . . . . . . . . . . . . Fabnet Peak Effective % . | . . . . . . . . . . . . . . . . . . . . . . . . . . . . . . . . . Robots Rewired . | . . . . . . . . . . . . . . . . . . . . . . . . . . . . . . . . . Allies Hacked . | . . . . . . . . . . . . . . . . . . . . . . . . . . . . . . . . . Hacks Repelled . | . . . . . . . . . . . . . . . . . . . . . . . . . . . . . . . . . Allies | -11 -10 -10 -10 -9 -8 -7 -7 -7 -7 -6 -6 -6 -6 -6 -6 -5 -5 -5 -5 -4 -4 -4 -4 -4 -3 -3 -3 -3 -2 -2 -2 -1 -------- Run | Scr Mat Min Exi Min Mat Fac Low Low Zio Pro Fac Ext Cet Arc Hub Fac Upp Upp Zhi Pro Fac Upp Upp War Pro Res Arm Lab Res Tes Sec Acc Total Allies 35 | . . 3 . . . . . . . . . 13 5 . . . . . . . . . . . . 1 12 . . . 1 . Largest Group 11 | . . 3 3 3 2 . . . . . . 6 8 7 5 . . . . . . . . . . 1 11 9 . . . . Highest-Rated Group 679 | . . 40 40 40 32 . . . . . . 300 679 651 403 . . . . . . . . . . 45 507 413 . . . . Highest-Rated Ally 159 | . . 16 16 16 16 . . . . . . 159 159 152 96 . . . . . . . . . . 45 58 58 . . . . Total Orders . | . . . . . . . . . . . . . . . . . . . . . . . . . . . . . . . . . Ally Attacks 234 | . . . . 34 4 . . . . . . 41 60 22 42 . . . . . . . . . . . 31 . . . . . Total Damage 6672 | . . . . 307 31 . . . . . . 1611 1434 770 1632 . . . . . . . . . . . 887 . . . . . Kills 32 | . . . . 1 1 . . . . . . 9 6 2 6 . . . . . . . . . . . 7 . . . . . Allies Corrupted . | . . . . . . . . . . . . . . . . . . . . . . . . . . . . . . . . . Allies Melted 1 | . . . . . . . . . . . . . . . 1 . . . . . . . . . . . . . . . . . Intel | -11 -10 -10 -10 -9 -8 -7 -7 -7 -7 -6 -6 -6 -6 -6 -6 -5 -5 -5 -5 -4 -4 -4 -4 -4 -3 -3 -3 -3 -2 -2 -2 -1 ------- Run | Scr Mat Min Exi Min Mat Fac Low Low Zio Pro Fac Ext Cet Arc Hub Fac Upp Upp Zhi Pro Fac Upp Upp War Pro Res Arm Lab Res Tes Sec Acc Robot Analysis Total 6 | . . . . . . . . . . . . . . . . . . . 4 . . . . . . . 1 . . 1 . . Derelict Logs Recovered 19 | . . . . 3 . . 2 2 1 1 . . . . . . 2 2 . 3 . 1 2 . . . . . . . . . Drone Launches . | . . . . . . . . . . . . . . . . . . . . . . . . . . . . . . . . . Drone Recoveries . | . . . . . . . . . . . . . . . . . . . . . . . . . . . . . . . . . Decoded 0b10 Intel 138 | . . . . . . . . . . . . 11 4 2 7 39 . . . . 15 . . . . 19 16 . 3 9 4 9 Traps 13 | . . . . . . . . . . . . 2 . . . 5 . . . . 2 . . . . 1 1 . . 2 . . Emergency Access 23 | . . . . . . . . . . . . 3 . . 3 5 . . . . 2 . . . . 4 1 . 2 1 . 2 Items 79 | . . . . . . . . . . . . 5 1 . 2 25 . . . . 7 . . . . 13 11 . 1 5 2 7 Machines 8 | . . . . . . . . . . . . . 1 1 2 . . . . . . . . . . 1 . . . 1 2 . Patrols 8 | . . . . . . . . . . . . 1 1 . . 3 . . . . 2 . . . . . 1 . . . . . Guards 5 | . . . . . . . . . . . . . . . . 1 . . . . 2 . . . . . 2 . . . . . Exits 2 | . . . . . . . . . . . . . 1 1 . . . . . . . . . . . . . . . . . . Exploration | -11 -10 -10 -10 -9 -8 -7 -7 -7 -7 -6 -6 -6 -6 -6 -6 -5 -5 -5 -5 -4 -4 -4 -4 -4 -3 -3 -3 -3 -2 -2 -2 -1 ------------- Run | Scr Mat Min Exi Min Mat Fac Low Low Zio Pro Fac Ext Cet Arc Hub Fac Upp Upp Zhi Pro Fac Upp Upp War Pro Res Arm Lab Res Tes Sec Acc Turns Passed 13128 | 132 453 275 156 330 1013 405 583 355 267 239 194 952 360 67 224 1353 544 474 55 281 515 455 249 460 365 627 690 63 68 379 244 301 Spaces Moved 22683 | 72 529 423 351 543 1439 621 1034 544 841 413 361 1144 230 59 438 2106 697 777 176 552 1166 487 421 1011 626 1328 1363 181 270 940 744 796 Core 5 | 5 . . . . . . . . . . . . . . . . . . . . . . . . . . . . . . . . Treads . | . . . . . . . . . . . . . . . . . . . . . . . . . . . . . . . . . Legs 213 | 67 146 . . . . . . . . . . . . . . . . . . . . . . . . . . . . . . . Wheels . | . . . . . . . . . . . . . . . . . . . . . . . . . . . . . . . . . Hover . | . . . . . . . . . . . . . . . . . . . . . . . . . . . . . . . . . Flight 22458 | . 383 423 351 543 1439 621 1034 544 841 413 361 1144 230 59 438 2106 697 777 176 552 1166 487 421 1011 626 1328 1363 181 270 940 744 789 Fastest Speed 7 | 50 31 31 31 31 29 28 28 28 28 28 26 26 26 26 26 23 23 23 18 18 18 18 18 18 18 12 12 12 12 12 12 7 Average Speed 22 | 115 56 31 31 31 30 28 29 28 28 28 26 26 26 26 26 23 23 23 21 18 18 18 18 18 18 17 12 12 12 14 12 11 Slowest Speed 230 | 120 230 31 31 31 31 30 30 30 28 28 28 104 26 26 26 26 23 23 101 18 18 18 18 18 18 18 12 12 12 90 12 12 Overloaded Moves 41 | . . . . . . . . . . . . . . . . . . . . . . . . . . . . . . . . 41 Propulsion Burnouts . | . . . . . . . . . . . . . . . . . . . . . . . . . . . . . . . . . Robots Hopped 63 | . . . . 1 2 6 . . . . 3 2 . . 13 6 1 1 . 1 4 . . 2 . 3 5 . . 4 7 2 Cave-ins Triggered 1 | . . . . . . . . . . . . . . . . . . . . . . . . 1 . . . . . . . . Teleports 1 | . . . . . . . . . . . . . . . . . . . . . . . . . . . . . . 1 . . Spacefolds 2 | . . . . . . . . . . . . . . . . . . . . . . . . . . . . . . . . 2 Exploration Rate (%) 62 | 5 94 87 74 98 87 24 94 69 83 56 10 82 74 74 34 44 83 90 61 79 23 73 62 91 77 32 61 96 10 76 47 24 Regions Visited 32 Branch Regions 23 Pre-discovered Areas 7 | . . . 1 . . . . . 1 . . . . . . . . . 3 . . . 1 1 . . . . . . . . Known Exits Taken 32 | 1 1 1 1 1 1 1 1 1 1 1 1 1 1 1 1 1 1 1 1 1 1 1 1 1 1 1 1 1 1 1 1 . Unknown Exits Taken . | . . . . . . . . . . . . . . . . . . . . . . . . . . . . . . . . . Scrap Searched 28 | . . 1 . 1 . . 4 2 3 4 . . . . . . 5 3 . 1 . 1 1 . 2 . . . . . . . Spaces Dug 113 | . . . . . . 3 . 3 . . . . . . 5 15 4 . . 5 14 3 2 4 . 13 9 . 2 9 16 6 Terrain Destroyed 955 | . 6 . . 11 166 9 . 3 . 5 9 35 . . 453 18 4 . . 9 23 9 2 4 . 13 139 . 2 9 20 6 Melee 113 | . . . . . . 3 . 3 . . . . . . 5 15 4 . . 5 14 3 2 4 . 13 9 . 2 9 16 6 Projectile 1 | . . . . . . . . . . . . . . . . 1 . . . . . . . . . . . . . . . . AOE 841 | . 6 . . 11 166 6 . . . 5 9 35 . . 448 2 . . . 4 9 6 . . . . 130 . . . 4 . Terrain Rammed . | . . . . . . . . . . . . . . . . . . . . . . . . . . . . . . . . . Walls Destroyed . | . . . . . . . . . . . . . . . . . . . . . . . . . . . . . . . . . Machines Disabled . | . . . . . . . . . . . . . . . . . . . . . . . . . . . . . . . . . Actions | -11 -10 -10 -10 -9 -8 -7 -7 -7 -7 -6 -6 -6 -6 -6 -6 -5 -5 -5 -5 -4 -4 -4 -4 -4 -3 -3 -3 -3 -2 -2 -2 -1 --------- Run | Scr Mat Min Exi Min Mat Fac Low Low Zio Pro Fac Ext Cet Arc Hub Fac Upp Upp Zhi Pro Fac Upp Upp War Pro Res Arm Lab Res Tes Sec Acc Total 29410 | 103 646 557 397 691 1859 816 1256 705 870 523 424 1660 496 97 505 2867 1068 1051 191 709 1412 834 589 1275 856 1671 1824 218 296 1130 838 976 Wait 5073 | . 39 124 47 124 175 159 144 124 14 87 7 233 230 19 44 595 363 254 . 139 191 325 167 227 208 285 397 15 18 120 40 159 Move 22528 | 71 528 422 350 540 1434 608 1033 543 840 412 354 1139 229 58 414 2093 694 774 175 549 1158 486 420 1007 625 1321 1354 180 269 931 731 786 Hop 54 | . . . . 1 2 6 . . . . 3 2 . . 10 6 1 1 . 1 3 . . 1 . 3 3 . . 4 5 2 Pick Up 128 | 8 12 1 . 4 17 9 6 2 2 3 8 6 . . 3 6 . . 1 . 3 . . 5 2 2 5 8 . 3 11 1 Fast Attach 24 | . . . . . . 1 . . . . . . . . . 3 . . 8 1 . . . 4 1 4 2 . . . . . Attach 54 | 6 2 1 . 1 8 1 2 . 1 . 2 1 . . 1 1 . . . . 3 . . 2 . 3 2 5 . 2 9 1 Detach 3 | . . . . . 1 . . . . . . . . . . 1 . . . . . . . 1 . . . . . . . . Swap 104 | 1 7 . . 1 8 6 5 2 4 1 2 15 3 1 9 12 . 1 . 2 5 2 . 2 . 2 3 2 3 3 . 2 Drop 102 | . 8 . . 3 14 6 6 2 1 3 5 5 . . 2 7 . . 7 1 2 . . 6 2 5 6 5 1 2 1 2 Fire 733 | 17 38 9 . 12 151 17 42 28 . 13 35 125 17 12 16 58 . 19 . 3 25 12 . 5 6 23 19 1 . 15 5 10 Melee 213 | . . . . . . 3 7 4 . . . . 8 . 5 20 6 . . 10 15 3 2 4 11 19 26 2 5 22 32 9 Ram . | . . . . . . . . . . . . . . . . . . . . . . . . . . . . . . . . . Kick . | . . . . . . . . . . . . . . . . . . . . . . . . . . . . . . . . . Crush . | . . . . . . . . . . . . . . . . . . . . . . . . . . . . . . . . . Escape Stasis 164 | . . . . . . . . . . . . 108 . . . 54 . . . . . . . . . . . . . . . 2 Rewire . | . . . . . . . . . . . . . . . . . . . . . . . . . . . . . . . . . Trap . | . . . . . . . . . . . . . . . . . . . . . . . . . . . . . . . . . Miscellaneous 230 | . 12 . . 5 49 . 11 . 8 4 8 26 9 7 1 11 4 2 . 3 7 6 . 11 1 4 7 . . 28 4 2 Route ------- -11/Scrapyard -10/Materials (discovered 4 exits: *Mat x3 / *Min) -10/Mines (discovered 3 exits: *Mat x2 / *Exi) -10/Exiles -9/Mines (discovered 2 exits: *Mat x2) -8/Materials (discovered 3 exits: *Fac x3) -7/Factory (discovered 6 exits: *Fac x4 / *Low x2) -7/Lower Caves -7/Lower Caves (discovered 2 exits: *Fac / *Zio) -7/Zion -6/Proximity Caves -6/Factory (discovered 4 exits: Low x2 / *Ext x2) -6/Extension (discovered 3 exits: *Fac x2 / *Cet) -6/Cetus -6/Archives (discovered 3 exits: *Fac / *Hub x2) -6/Hub_04(d) (discovered 4 exits: *Fac x4) -5/Factory (discovered 4 exits: *Fac x2 / *Upp x2) -5/Upper Caves -5/Upper Caves (discovered 2 exits: *Fac / *Zhi) -5/Zhirov -4/Proximity Caves -4/Factory (discovered 3 exits: *Res x2 / *Upp) -4/Upper Caves -4/Upper Caves (discovered 2 exits: Res / *War) -4/Warlord -3/Proximity Caves -3/Research (discovered 4 exits: Res / *Arm / *Qua x2) -3/Armory (discovered 3 exits: Res x2 / *Lab) -3/Lab -2/Research (discovered 3 exits: Acc / *Tes x2) -2/Testing (discovered 2 exits: *Acc / *Sec) -2/Section 7 -1/Access To Fleet Rendezvous History --------- Turn | Location | Event 1 | -11/Scrapyard | Upgraded with Propulsion slot (x3) 1 | -11/Scrapyard | Upgraded with Utility slot (x1) 18 | -11/Scrapyard | Identified exit to Materials 18 | -11/Scrapyard | Discovered exit to Materials (range 15) 133 | -11/Scrapyard | Entered Materials 147 | -10/Materials | Identified exit to Mines 316 | -10/Materials | Build established: Hacker-Mutant 451 | -10/Materials | Identified exit to Materials 451 | -10/Materials | Discovered exit to Materials (range 3) 586 | -10/Materials | Entered Mines 588 | -10/Mines | Reached level 2 593 | -10/Mines | Upgraded with Utility slot (x2) 623 | -10/Mines | Assisted by bots powering up and referring to "LRC-V3" 709 | -10/Mines | Build established: Scavenger-Sprinter 786 | -10/Mines | Discovered exit to Materials (range 10) 789 | -10/Mines | Discovered exit to Materials (range 16) 793 | -10/Mines | Deemed a non-threat by the Exiles lab entrance 793 | -10/Mines | Identified exit to Exiles 793 | -10/Mines | Discovered exit to Exiles (range 5) 861 | -10/Mines | Entered Exiles 861 | -10/Exiles | Accompanied by 3 allies 869 | -10/Exiles | Met 8R-AWN 877 | -10/Exiles | Met EX-HEX 895 | -10/Exiles | Met EX-DEC 898 | -10/Exiles | Learned location of Zion (-7) 904 | -10/Exiles | Met EX-BIN 943 | -10/Exiles | Visited The Gauntlet 967 | -10/Exiles | Identified exit to Mines 967 | -10/Exiles | Discovered exit to Mines (range 10) 1017 | -10/Exiles | Entered Mines 1017 | -9/Mines | Accompanied by 3 allies 1056 | -9/Mines | Identified exit to Materials 1056 | -9/Mines | Discovered exit to Materials (range 11) 1070 | -9/Mines | Reached level 3 1089 | -9/Mines | Found a damaged Exp. Sensor Array with a note attached 1090 | -9/Mines | Found Prototype Device 1091 | -9/Mines | Identified Exp. Sensor Array 1112 | -9/Mines | Learned Materials stockpile data 1118 | -9/Mines | A weapon hastily lodged in a ceiling crevice suddenly fell to the ground 1223 | -9/Mines | Discovered exit to Materials (range 8) 1225 | -9/Mines | Learned Materials terminal intel 1225 | -9/Mines | Learned location of 1 exit from Materials 1347 | -9/Mines | Entered Materials 1347 | -8/Materials | Accompanied by 2 allies 1348 | -8/Materials | Identified exit to Factory 1349 | -8/Materials | Reached level 4 1349 | -8/Materials | Reached level 5 1349 | -8/Materials | Reached level 6 1350 | -8/Materials | Loaded intel: 12 terminal locations 1355 | -8/Materials | Upgraded with Utility slot (x3) 1382 | -8/Materials | Build established: Scavenger-Scout 1473 | -8/Materials | Reached level 7 1700 | -8/Materials | Discovered exit to Factory (range 3) 1734 | -8/Materials | Build established: Hacker-Scout 1739 | -8/Materials | Reached level 8 1853 | -8/Materials | Discovered exit to Factory (range 9) 1914 | -8/Materials | Reached level 9 2147 | -8/Materials | First assault squad dispatched 2301 | -8/Materials | Reached level 10 2360 | -8/Materials | Entered Factory 2362 | -7/Factory | Reached level 11 2369 | -7/Factory | Upgraded with Utility slot (x1) 2387 | -7/Factory | Identified exit to Lower Caves 2412 | -7/Factory | Identified exit to Factory 2656 | -7/Factory | Build established: Wizard-Scout 2765 | -7/Factory | Entered Lower Caves 2808 | -7/Lower Caves | Encountered a Warlord checkpoint 2867 | -7/Lower Caves | Attacked by a delusional Derelict stockpiling parts 2887 | -7/Lower Caves | Learned Factory stockpile data 2895 | -7/Lower Caves | Learned Factory non-interactive machine intel 3145 | -7/Lower Caves | Identified exit to Lower Caves 3145 | -7/Lower Caves | Discovered exit to Lower Caves (range 7) 3184 | -7/Lower Caves | Reached level 12 3348 | -7/Lower Caves | Entered another Lower Caves area 3357 | -7/Lower Caves | Discovered exit to Factory (range 8) 3432 | -7/Lower Caves | Learned Factory security intel 3489 | -7/Lower Caves | Encountered a Warlord checkpoint 3557 | -7/Lower Caves | Learned Factory emergency access door positions 3693 | -7/Lower Caves | Identified exit to Zion 3693 | -7/Lower Caves | Discovered exit to Zion (range 6) 3703 | -7/Lower Caves | Entered Zion 3705 | -7/Zion | Reached level 13 3705 | -7/Zion | Upgraded with Utility slot (x1) 3721 | -7/Zion | Received a hallucinogenic algorithm 3724 | -7/Zion | Identified exit to Proximity Caves 3724 | -7/Zion | Discovered exit to Proximity Caves (range 16) 3746 | -7/Zion | Found Prototype Device 3747 | -7/Zion | Identified Phasing AFG 3781 | -7/Zion | Learned Factory repair station intel 3823 | -7/Zion | Given A8's code to call for help 3823 | -7/Zion | Acquired unknown access codes intercepted by a Zionite 3883 | -7/Zion | Learned location of Warlord (-4) 3887 | -7/Zion | Given the Hacking Drone Bay 3896 | -7/Zion | Found Prototype Device 3903 | -7/Zion | Identified Hacking Drone Bay 3970 | -7/Zion | Entered Proximity Caves 3970 | -6/Proximity Caves | Spotted B-75 Beast 4002 | -6/Proximity Caves | Build established: Wizard-Ninja 4150 | -6/Proximity Caves | Learned Factory garrison access intel 4184 | -6/Proximity Caves | Discovered exit to Factory (range 10) 4199 | -6/Proximity Caves | Reached level 14 4205 | -6/Proximity Caves | Upgraded with Power slot (x1) 4205 | -6/Proximity Caves | Upgraded with Propulsion slot (x1) 4209 | -6/Proximity Caves | Entered Factory 4210 | -6/Factory | Identified exit to Lower Caves 4211 | -6/Factory | Reached level 15 4214 | -6/Factory | Loaded intel: 271 non-interactive machine locations 4215 | -6/Factory | Loaded intel: 6 repair station locations 4216 | -6/Factory | Loaded intel: 3 garrison access locations 4299 | -6/Factory | Identified exit to Extension 4403 | -6/Factory | Entered Extension 4405 | -6/Extension | Reached level 16 4470 | -6/Extension | Build established: Wizard-Scout 4550 | -6/Extension | Rescued a captive Derelict 4558 | -6/Extension | Rescued a captive Derelict 4620 | -6/Extension | Reached level 17 4658 | -6/Extension | Destroyed 10 combat bots 4729 | -6/Extension | Rescued a captive Derelict 4730 | -6/Extension | Rescued a captive Derelict 4735 | -6/Extension | Enhanced Grunt warped into view, answering call for help 4735 | -6/Extension | Enhanced Grunt warped into view, answering call for help 4753 | -6/Extension | First assault squad dispatched 4761 | -6/Extension | Rescued a captive Derelict 4787 | -6/Extension | Spotted B-75 Beast 4810 | -6/Extension | Spotted B-75 Beast 4812 | -6/Extension | Identified exit to Factory 4812 | -6/Extension | Discovered exit to Factory (range 15) 4828 | -6/Extension | Disrupted transfer network 4838 | -6/Extension | Destroyed B-75 Beast 4881 | -6/Extension | Destroyed B-75 Beast 5067 | -6/Extension | Reached level 18 5154 | -6/Extension | Identified exit to Cetus 5158 | -6/Extension | Rescued a captive Derelict 5225 | -6/Extension | Rescued a captive Derelict 5229 | -6/Extension | Rescued a captive Derelict 5239 | -6/Extension | Rescued a captive Derelict 5244 | -6/Extension | Rescued a captive Derelict 5283 | -6/Extension | Rescued A7 5293 | -6/Extension | Discovered exit to Factory (range 15) 5355 | -6/Extension | Entered Cetus 5355 | -6/Cetus | Accompanied by 6 allies (A7) 5359 | -6/Cetus | Upgraded with Utility slot (x1) 5360 | -6/Cetus | Acquired a Cetus Manufacturing Module code from A7 5363 | -6/Cetus | Spotted Cetus Guard 5363 | -6/Cetus | Spotted Cetus Guard 5364 | -6/Cetus | Spotted Cetus Guard 5375 | -6/Cetus | Allies destroyed Cetus Guard 5377 | -6/Cetus | Spotted Cetus Guard 5387 | -6/Cetus | Destroyed Cetus Guard 5394 | -6/Cetus | Allies destroyed Cetus Guard 5400 | -6/Cetus | Allies destroyed Cetus Guard 5410 | -6/Cetus | Started Cetus Manufacturing Module 5435 | -6/Cetus | Manufactured an Enhanced Grunt 5460 | -6/Cetus | Manufactured an Enhanced Grunt 5485 | -6/Cetus | Manufactured an Enhanced Grunt 5510 | -6/Cetus | Manufactured an Enhanced Grunt 5535 | -6/Cetus | Manufactured an Enhanced Grunt 5554 | -6/Cetus | Reached level 19 5585 | -6/Cetus | Found a strange terminal 5590 | -6/Cetus | Identified exit to Archives 5677 | -6/Cetus | Escorted A7 to Cetus Mainframe 5715 | -6/Cetus | Entered Archives 5715 | -6/Archives | Accompanied by 7 allies (A7) 5720 | -6/Archives | Received a hacking code to weaken MAIN.C 5750 | -6/Archives | Discovered exit to Factory (range 14) 5756 | -6/Archives | Unable to access archive contents 5757 | -6/Archives | Identified exit to Hub_04(d) 5757 | -6/Archives | Discovered exit to Hub_04(d) (range 15) 5759 | -6/Archives | Unable to access archive contents 5782 | -6/Archives | Entered Hub_04(d) 5782 | -6/Hub_04(d) | Accompanied by 5 allies 5817 | -6/Hub_04(d) | Found Prototype Device 5818 | -6/Hub_04(d) | Identified Exp. Thermal Shield 5953 | -6/Hub_04(d) | Network Hub disabled 5953 | -6/Hub_04(d) | Network Hub disabled 5969 | -6/Hub_04(d) | Spotted Lightning 5969 | -6/Hub_04(d) | Spotted Lightning 6001 | -6/Hub_04(d) | Network Hub disabled 6006 | -6/Hub_04(d) | Entered Factory 6008 | -5/Factory | Reached level 20 6096 | -5/Factory | Fabricated Lrn. Terrain Scanner? 6101 | -5/Factory | Upgraded with Propulsion slot (x1) 6125 | -5/Factory | Identified exit to Upper Caves 6125 | -5/Factory | Discovered exit to Upper Caves (range 18) 6342 | -5/Factory | Identified exit to Factory 6342 | -5/Factory | Discovered exit to Factory (range 17) 6412 | -5/Factory | Reached level 21 6492 | -5/Factory | Adv. Hacking Suite fried by hacking feedback 6585 | -5/Factory | Fabricated Exp. Hacking Suite? 6825 | -5/Factory | Fabricated Exp. Hacking Suite? 7005 | -5/Factory | Discovered exit to Factory (range 19) 7111 | -5/Factory | Fabricated Exp. Hacking Suite? 7131 | -5/Factory | Fabricated Adv. Transmission Jammer? 7329 | -5/Factory | Build established: Wizard-Ninja 7359 | -5/Factory | Entered Upper Caves 7617 | -5/Upper Caves | Learned Factory stockpile data 7622 | -5/Upper Caves | Learned 4 Factory zone layouts 7794 | -5/Upper Caves | Encountered a Warlord checkpoint 7795 | -5/Upper Caves | Identified exit to Upper Caves 7795 | -5/Upper Caves | Discovered exit to Upper Caves (range 6) 7903 | -5/Upper Caves | Entered another Upper Caves area 7910 | -5/Upper Caves | Discovered exit to Factory (range 22) 7915 | -5/Upper Caves | Encountered a Warlord checkpoint 8130 | -5/Upper Caves | Identified exit to Zhirov 8130 | -5/Upper Caves | Discovered exit to Zhirov (range 21) 8143 | -5/Upper Caves | Learned Factory security intel 8175 | -5/Upper Caves | Learned location of 1 exit from Factory 8377 | -5/Upper Caves | Entered Zhirov 8377 | -5/Zhirov | Identified exit to Proximity Caves 8377 | -5/Zhirov | Discovered exit to Proximity Caves (range 3) 8382 | -5/Zhirov | Met Zhirov 8387 | -5/Zhirov | Learned location of Quarantine (-3) 8387 | -5/Zhirov | Learned location of Testing (-2) 8387 | -5/Zhirov | Learned location of Command (-1) 8390 | -5/Zhirov | Zhirov requested help retrieving the SGEMP Prototype 8394 | -5/Zhirov | Found Alien Artifact 8394 | -5/Zhirov | Identified Integrated Dissipator 8394 | -5/Zhirov | Installed Integrated Dissipator, increased core heat dissipation (+20) 8400 | -5/Zhirov | Found Alien Artifact 8415 | -5/Zhirov | Upgraded with Propulsion slot (x1) 8415 | -5/Zhirov | Upgraded with Weapon slot (x1) 8432 | -5/Zhirov | Entered Proximity Caves 8434 | -4/Proximity Caves | Reached level 22 8459 | -4/Proximity Caves | Learned Research stockpile data 8584 | -4/Proximity Caves | Build established: Wizard-Scout 8713 | -4/Proximity Caves | Entered Factory 8714 | -4/Factory | Identified exit to Research 8715 | -4/Factory | Reached level 23 8728 | -4/Factory | Discovered exit to Research (range 11) 9008 | -4/Factory | Found Prototype Hackware 9009 | -4/Factory | Identified Exp. System Shield 9096 | -4/Factory | Fabricated Exp. Hacking Suite? 9103 | -4/Factory | Identified exit to Upper Caves 9103 | -4/Factory | Discovered exit to Upper Caves (range 24) 9228 | -4/Factory | Entered Upper Caves 9228 | -4/Upper Caves | Upgraded with Utility slot (x1) 9230 | -4/Upper Caves | Reached level 24 9274 | -4/Upper Caves | Build established: Wizard-Ninja 9346 | -4/Upper Caves | Encountered a Warlord checkpoint 9521 | -4/Upper Caves | Learned 4 Research zone layouts 9563 | -4/Upper Caves | Identified exit to Upper Caves 9563 | -4/Upper Caves | Discovered exit to Upper Caves (range 22) 9683 | -4/Upper Caves | Entered another Upper Caves area 9711 | -4/Upper Caves | Discovered exit to Research (range 17) 9879 | -4/Upper Caves | Learned Research terminal intel 9886 | -4/Upper Caves | Identified exit to Warlord 9886 | -4/Upper Caves | Discovered exit to Warlord (range 11) 9932 | -4/Upper Caves | Entered Warlord 9945 | -4/Warlord | Identified exit to Proximity Caves 9945 | -4/Warlord | Discovered exit to Proximity Caves (range 12) 10000 | -4/Warlord | Visited the Vortex Lab 10006 | -4/Warlord | Warlord's base attacked by MAIN.C 10045 | -4/Warlord | Met Warlord 10054 | -4/Warlord | Learned Quarantine emergency access door positions 10054 | -4/Warlord | Learned 4 Testing zone layouts 10054 | -4/Warlord | Learned Factory garrison access intel 10054 | -4/Warlord | Learned Research fabricator intel 10086 | -4/Warlord | Crushed by falling debris 10092 | -4/Warlord | Found Prototype Hackware 10093 | -4/Warlord | Identified System Mapper 10098 | -4/Warlord | Found Prototype Device 10098 | -4/Warlord | Identified Exp. Phase Shifter 10102 | -4/Warlord | Found Prototype Processor 10102 | -4/Warlord | Identified Exp. Core Analyzer 10106 | -4/Warlord | Found Prototype Reactor 10106 | -4/Warlord | Identified Vortex Chain Reactor 10356 | -4/Warlord | Warlord forces counterattacked 10371 | -4/Warlord | Opened side exit 10392 | -4/Warlord | Entered Proximity Caves 10394 | -3/Proximity Caves | Reached level 25 10483 | -3/Proximity Caves | Attracted the attention of an 0b10 checkpoint 10732 | -3/Proximity Caves | Discovered exit to Research (range 19) 10757 | -3/Proximity Caves | Entered Research 10758 | -3/Research | Identified exit to Quarantine 10759 | -3/Research | Reached level 26 10759 | -3/Research | Reached level 27 10761 | -3/Research | Loaded intel: 21 terminal locations 10762 | -3/Research | Loaded intel: 4 fabricator locations 10800 | -3/Research | Discovered exit to Quarantine (range 22) 10898 | -3/Research | Identified exit to Armory 10954 | -3/Research | Fabricated Exp. Signal Interpreter? 11153 | -3/Research | Identified exit to Research 11153 | -3/Research | Discovered exit to Research (range 15) 11164 | -3/Research | Fabricated Electron Diverter? 11223 | -3/Research | Upgraded with Propulsion slot (x2) 11331 | -3/Research | Fabricated Electron Diverter? 11384 | -3/Research | Entered Armory 11538 | -3/Armory | Discovered exit to Research (range 22) 11705 | -3/Armory | Found Prototype Launcher 11709 | -3/Armory | Identified Tesla Bomb Launcher 11820 | -3/Armory | Spotted B-86 Titan 11841 | -3/Armory | Discovered exit to Research (range 18) 11872 | -3/Armory | Assisted by bots powering up and referring to "LRC-V3" 11912 | -3/Armory | Identified exit to Lab 11912 | -3/Armory | Discovered exit to Lab (range 19) 11985 | -3/Armory | Reached level 28 12017 | -3/Armory | Found Prototype Slashing Weapon 12017 | -3/Armory | Identified Nanosword 12074 | -3/Armory | Entered Lab 12074 | -3/Lab | Accompanied by 9 allies 12074 | -3/Lab | Discovered exit to Research (range 9) 12076 | -3/Lab | Unable to decrypt terminal 12076 | -3/Lab | Opened the door to a hidden lab 12076 | -3/Lab | Detected by scanners 12077 | -3/Lab | Gained access to the hidden lab's interior 12077 | -3/Lab | Reached level 29 12077 | -3/Lab | Unable to decrypt terminal 12078 | -3/Lab | Found Alien Artifact 12085 | -3/Lab | Identified Core Reset Matrix 12085 | -3/Lab | Identified Transdimensional Reconstructor 12085 | -3/Lab | Used Core Reset Matrix 12089 | -3/Lab | Sensed 3 artifacts in vicinity 12094 | -3/Lab | Found Prototype Energy Cannon 12095 | -3/Lab | Identified Potential Cannon 12102 | -3/Lab | Found Prototype Device 12103 | -3/Lab | Found Prototype Hackware 12108 | -3/Lab | Unable to decrypt terminal 12120 | -3/Lab | Discovered exit to Research (range 9) 12124 | -3/Lab | Found Integrated Reactor 12125 | -3/Lab | Installed Integrated Reactor, increased core energy generation (+10) 12133 | -3/Lab | Found Core Regenerator 12136 | -3/Lab | Disabled Active System Cloaker 12137 | -3/Lab | Entered Research 12137 | -2/Research | Warlord forces began assault on 0b10 12137 | -2/Research | Identified AEGIS Remote Shield 12139 | -2/Research | Reached level 30 12139 | -2/Research | Identified Deep Network Scanner 12147 | -2/Research | Upgraded with Utility slot (x1) 12174 | -2/Research | Identified exit to Testing 12204 | -2/Research | Identified exit to Access 12204 | -2/Research | Discovered exit to Access (range 24) 12205 | -2/Research | Entered Testing 12254 | -2/Testing | Found Prototype Launcher 12255 | -2/Testing | Identified Z-bomb Delivery System 12262 | -2/Testing | Discovered exit to Access (range 12) 12423 | -2/Testing | Intercept squad dispatched 12431 | -2/Testing | Spotted Tracker 12431 | -2/Testing | Spotted Tracker 12438 | -2/Testing | Reached level 31 12438 | -2/Testing | Destroyed Tracker 12442 | -2/Testing | Core integrity fell below 50% 12444 | -2/Testing | Destroyed Tracker 12448 | -2/Testing | Spotted Combat Programmer 12449 | -2/Testing | Spotted Combat Programmer 12464 | -2/Testing | Core integrity fell below 20% 12473 | -2/Testing | Warped through subspace 12474 | -2/Testing | Used Core Regenerator, restored core integrity (+150) 12563 | -2/Testing | Spotted Fortress 12572 | -2/Testing | Identified exit to Section 7 12572 | -2/Testing | Discovered exit to Section 7 (range 7) 12584 | -2/Testing | Entered Section 7 12585 | -2/Section 7 | Sensed 25 artifacts in vicinity 12585 | -2/Section 7 | Spotted S7 Guard 12588 | -2/Section 7 | Found Core Membrane 12590 | -2/Section 7 | Installed Core Membrane, gained immunity to corruption 12594 | -2/Section 7 | Found Spacefold Activator 12606 | -2/Section 7 | Spotted S7 Guard 12609 | -2/Section 7 | Found Integrated Thermoelectric Network 12619 | -2/Section 7 | Found Integrated Dissipator 12620 | -2/Section 7 | Installed Integrated Dissipator, increased core heat dissipation (+20) 12631 | -2/Section 7 | Found Integrated Dissipator 12632 | -2/Section 7 | Installed Integrated Dissipator, increased core heat dissipation (+20) 12645 | -2/Section 7 | Found Integrated Dissipator 12646 | -2/Section 7 | Installed Integrated Dissipator, increased core heat dissipation (+20) 12679 | -2/Section 7 | Found Integrated Reactor 12680 | -2/Section 7 | Installed Integrated Reactor, increased core energy generation (+10) 12729 | -2/Section 7 | Spotted Alpha 7 12732 | -2/Section 7 | Spotted Alpha 7 12734 | -2/Section 7 | Spotted B-99 Colossus 12748 | -2/Section 7 | Found LRC Storage 12749 | -2/Section 7 | Installed LRC Storage, increased inventory capacity (+2) 12750 | -2/Section 7 | Found LRC Boosters 12751 | -2/Section 7 | Installed LRC Boosters, increased mass support (+10) 12759 | -2/Section 7 | Found Integrated Dissipator 12760 | -2/Section 7 | Installed Integrated Dissipator, increased core heat dissipation (+20) 12806 | -2/Section 7 | Intercept squad dispatched 12812 | -2/Section 7 | Spotted Tracker 12812 | -2/Section 7 | Spotted Tracker 12815 | -2/Section 7 | Destroyed Tracker 12817 | -2/Section 7 | Destroyed Tracker 12823 | -2/Section 7 | Spotted Combat Programmer 12823 | -2/Section 7 | Spotted Combat Programmer 12824 | -2/Section 7 | Spotted B-90 Cyclops 12828 | -2/Section 7 | Entered Access 12830 | -1/Access | Reached level 32 12830 | -1/Access | Reached level 33 12834 | -1/Access | Upgraded with Utility slot (x1) 13078 | -1/Access | Search patrols dispatched 13104 | -1/Access | Identified exit to Surface 13108 | -1/Access | Intercept squad dispatched 13124 | -1/Access | Spotted Tracker 13124 | -1/Access | Spotted Tracker 13129 | *** | Heading to fleet! Last Messages --------------- (79,174) Map updated. 13108_ ALERT: Reliable intel has pinpointed LRC-V3, intercept squad en route. 13109_ ALERT: Security rotation in progress. 13114_ W-44 Eye distress signal jammed. 13115_ Slug penetrates Wall. 13115_ W-44 Eye distress signal jammed. 13116_ Penetrated by Slug. 13116_ Slug penetrates Wall. 13116_ W-44 Eye distress signal jammed. 13120_ >> DECODED: Enh. Nova Cannon location. 13120_ Wave Collapse Detector explodes. 13120_ K-01 Serf destroyed. 13120_ S-43 Plague destroyed. Tracker: "THREAT CONFIRMED. DEPLOY COMBAT PROGRAMMER." 13128_ Connecting with Terminal... >>Open(Door) Sealed Barrier opened. 13128_ The Access Shell folds into the floor. Map ----- +----------------------------------------------------+ | #?## ## + #############?#?? | | ####+##+########## # #########?###?#?g | | ??## ? ########## # ##########??### ? | | ??#? ? ########## ##############??#####??###?#? | | ?#?# ? # #?# #?####?#########?##?######??? | | ###? ? # ? ? ### # ? ? #?##??##???####? | | + ? ??+ ?? ?### # ? ? ###?#?###??#??# | | # ???#?? ?? ### # ?? ? #?##????##?##??? | | # ??? ???? ??# # ?? ?#####?####??##? ? | | ?? ? ? ??# #?? ? " #?#?##??#?######? | | #?######## #?? """ ?####?#?#? ? ????? | | u ### # """ #???###?# ?"?"?? | | **! + " ##??##?## "???? | | *!! ######## ####??##? ??" ? | | *!! #?????## ? ##?###?##??? ? ? | | ########### #????##?? ###?##??# ??????? | | ??""?? ?## #???###? ? ###??###??R? ???? | | ??"?""??### #?##?###???##???#####?#?##??# ??????? | | "???? ??## #?#??####??###?#??#????#?##?? ??????? | | ? ??????## ####### ##########???#?????#? ??????? | | ?????? ??## """T""" ""?"??? ??????????? | | ??????????# """ """ """? BB????????????? | | ?? ??? ??# "?"??BB ???#???k??? | | ? ???? ???# "??????????????????? | | ????????### u "" "??????? ?? ??????? | | ???? ?????# @" "??????????? ??????? | | ???? #????# "??"?? ????????????? | | ??????#???# ""?"?BB????????????? | | ?#???#????# "??? BB????????k???? | | ?#????#???# "???????? ?????????? | | ???#???#### ####### ##########??????????????????? | | ?#???????## #??######?##????????????????????????? | | ??????????# ###?#????????????????????#??????????? | | ???? ?????# ?????#?????#???????##???????#???????? | | ?# ???? ??# A????????????????#???????????????????? | | ?#??????? g ??????#??#???????????#??????????????? | | ????? ?? ?# ????###?????????????????????????????? | | ??? ?? ??+ ????????? ??????????????????????????? | | ????????? ????????????????????#?#????????????????? | | ????????? ??#??????#????#??????#?????????????????? | | ????? ??? ??????????????????#??????????????A?????? | | ?????? ?????#????????????????????????????????????? | | ?????????????????##??? ??????????????????????????? | | ???????????????????????????#?????????????????????? | | ?????????#??????????#??#?????????#???????????????? | | ????????p????? ???? ?? ?????????????????????????? | | ??????????????????????k?????? ???????????????????? | | ????p???????????????#??#?????????????????????????? | | ?????????????????????????????????????????????????? | | ?????????????????????????????????????????????????? | +----------------------------------------------------+ Best States ------------- Heat Dissipation 179 Energy Generation 90 Energy Capacity 700 Matter Stores 300 Matter Capacity 300 Sight Range 16 Robot Scan Range 40 Terrain Scan Range 24 Terrain Scan Density 1010 Jamming Range 16 Cloak Strength 4 Armor Coverage 300 Resistance: KI 35 Resistance: TH 65 Resistance: EX 35 Resistance: EM 35 Resistance: I 35 Resistance: S 35 Resistance: P 35 Phase Shifting 20 Evasion (%) 87 Offensive Hacking 101 Defensive Hacking 40 Item Schematics ----------------- Lgt. Regenerative Plating | -2/Testing | Hacked Hvy. Regenerative Plating | -2/Testing | Hacked Enh. Nova Cannon | -2/Testing | Hacked Exp. Gyrokinetic Inverter | -2/Testing | Hacked Robot Schematics ------------------ C-57 Dissector | -2/Testing | Hacked Fabricated ------------ Lrn. Terrain Scanner | x1 | -5/Factory Exp. Hacking Suite | x1 | -5/Factory Exp. Hacking Suite | x1 | -5/Factory Exp. Hacking Suite | x1 | -5/Factory Adv. Transmission Jammer | x1 | -5/Factory Exp. Hacking Suite | x1 | -4/Factory Exp. Signal Interpreter | x1 | -3/Research Electron Diverter | x1 | -3/Research Electron Diverter | x1 | -3/Research Alien Tech Used ----------------- Integrated Dissipator Core Reset Matrix Integrated Reactor Transdimensional Reconstructor Core Regenerator Core Membrane LRC Storage LRC Boosters Spacefold Activator Achievements -------------- Anyone Home? Part-time Excavator l33t h4x0r Challenges ------------ None RPGLIKE | -11 -10 -10 -10 -9 -8 -7 -7 -7 -7 -6 -6 -6 -6 -6 -6 -5 -5 -5 -5 -4 -4 -4 -4 -4 -3 -3 -3 -3 -2 -2 -2 -1 --------- Run | Scr Mat Min Exi Min Mat Fac Low Low Zio Pro Fac Ext Cet Arc Hub Fac Upp Upp Zhi Pro Fac Upp Upp War Pro Res Arm Lab Res Tes Sec Acc Levels Raised 32 | . . 1 . 1 7 1 1 . 1 1 1 3 1 . . 2 . . . 1 1 1 . . 1 2 1 1 1 1 . 2 XP Earned 54292 | 6000 1205 750 200 1565 9986 1965 1200 950 500 1250 2435 4011 1041 356 717 2160 244 364 316 1350 1918 685 244 562 1100 2219 1436 1900 1415 1009 1066 2173 XP Spent 53815 | 5400 . 2090 . . 5935 7500 . . 2600 1900 1410 1610 3030 . . 1700 . . 2500 . . 3200 . 600 . 5410 . . 4510 . . 4420 Upgrades 66 | 8 . 5 . . 11 14 . . 1 2 5 2 2 . . 1 . . 2 . . 1 . 1 . 5 . . 3 . . 3 Power Slot 1 | . . . . . . . . . . 1 . . . . . . . . . . . . . . . . . . . . . . Propulsion Slot 8 | 3 . . . . . . . . . 1 . . . . . 1 . . 1 . . . . . . 2 . . . . . . Utility Slot 12 | 1 . 2 . . 3 1 . . 1 . . . 1 . . . . . . . . 1 . . . . . . 1 . . 1 Weapon Slot 1 | . . . . . . . . . . . . . . . . . . . 1 . . . . . . . . . . . . . Heat Dissipation 9 | . . 1 . . 2 . . . . . . 1 1 . . . . . . . . . . . . 3 . . 1 . . . Energy Generation 3 | . . . . . . . . . . . 2 . . . . . . . . . . . . . . . . . 1 . . . Mass Support 2 | . . . . . . . . . . . 1 . . . . . . . . . . . . 1 . . . . . . . . Inventory Capacity 6 | 4 . . . . . 1 . . . . . 1 . . . . . . . . . . . . . . . . . . . . Sensor Range 10 | . . . . . 6 4 . . . . . . . . . . . . . . . . . . . . . . . . . . Terrain Scan Density 8 | . . 2 . . . 2 . . . . 2 . . . . . . . . . . . . . . . . . . . . 2 Hack Attack % 4 | . . . . . . 4 . . . . . . . . . . . . . . . . . . . . . . . . . . Hack Defense % 2 | . . . . . . 2 . . . . . . . . . . . . . . . . . . . . . . . . . . Protomatter Created 2978 | . 163 . . 129 341 45 196 121 . 24 180 645 134 73 . 129 60 170 . 57 114 43 . . 143 100 71 . . . 40 . Integrity Restored 4411 | . 215 . . 75 950 . 220 . 159 67 133 543 147 141 6 231 82 21 . 37 128 94 . 225 5 72 118 . . 625 75 42 Core 3381 | . 148 . . 22 745 . 150 . 123 50 75 457 90 116 . 196 82 6 . 13 99 72 . 194 . 56 96 . . 474 75 42 Parts 1030 | . 67 . . 53 205 . 70 . 36 17 58 86 57 25 6 35 . 15 . 24 29 22 . 31 5 16 22 . . 151 . . Protomatter Decayed 2979 | . 50 . . 116 95 . 94 173 . . 76 372 392 . 135 49 57 . . 6 69 87 . 949 43 73 128 . . . 15 . Game ------ Seed WardroneDeuteriumRouter Manual? 0 Play Time 04:19:13 Cumulative 93.4 hours Start 2022.04.10 @ 12:22:48 End 2022.04.10 @ 16:38:35 Sessions 1 Manual Loads 0 Difficulty Explorer Special Mode Winter2019/RPGLIKE Game No. 47 Rogue 9 Adventurer 5 Explorer 33 Win Type 2 Total 17 Types 10/0/3/4/0/0/0/0/0 Lore% 64 Gallery% 63 Achievement% 66 Wizard Run 0 Options --------- ASCII 0 Keyboard 0 Movement Mouse Keybinds 0 Fullscreen 1 Font 18/Terminus Map View 76x50 Tactical HUD 1 Map Filters NONE Filters NONE Steam 1 RUN: e5054922-57f0-4ee7-8e17-b2395e400709